{"text_format":"1","workbook":"xlsx","n_sheets":7,"sheets":["請求書","基本情報入力","消費税マスタ","請求書(手書き用)","その他","入力例→","請求書(例)"],"not_rendered":{"charts":0,"images":2,"macros":1,"external_links":0,"defined_names":13,"comments":5,"pivot_tables":0},"unopened":[],"bounds":{"document_bytes":16777216,"sheet_cells":100000,"rows_first":2000,"rows_last":500,"rows_between":2000,"halvings":0,"cell_chars":16384,"cell_head_chars":4096},"cells_cut":0,"cells_raw":0,"read":"whole","date_system":"1900"}

{"sheet":"請求書","index":0,"n_rows":371,"n_cols":159,"rows_kept":371,"cut":false,"hidden":false,"merged":[[100,92,103,95],[100,96,103,101],[100,102,103,107],[100,108,103,113],[104,92,107,95],[104,96,107,101],[104,102,107,107],[104,108,107,113],[365,92,365,113],[366,6,366,91],[366,92,366,113],[367,92,369,113],[361,92,361,113],[362,6,362,15],[362,16,362,51],[362,52,362,61],[362,62,362,71],[362,72,362,81],[362,82,362,91],[362,92,362,113],[361,6,361,15],[361,16,361,51],[361,52,361,61],[361,62,361,71],[361,72,361,81],[361,82,361,91],[359,92,359,113],[360,6,360,15],[360,16,360,51],[370,54,372,57],[370,58,372,61],[370,62,372,65],[370,92,372,115],[365,6,365,15],[365,16,365,51],[365,52,365,61],[365,62,365,71],[365,72,365,81],[365,82,365,91],[363,92,363,113],[364,6,364,15],[364,16,364,51],[364,52,364,61],[364,62,364,71],[364,72,364,81],[364,82,364,91],[364,92,364,113],[363,6,363,15],[363,16,363,51],[363,52,363,61],[363,62,363,71],[363,72,363,81],[363,82,363,91],[360,52,360,61],[360,62,360,71],[360,72,360,81],[360,82,360,91],[360,92,360,113],[359,6,359,15],[359,16,359,51],[359,52,359,61],[359,62,359,71],[359,72,359,81],[359,82,359,91],[357,92,357,113],[358,6,358,15],[358,16,358,51],[358,52,358,61],[358,62,358,71],[358,72,358,81],[358,82,358,91],[358,92,358,113],[357,6,357,15],[357,16,357,51],[357,52,357,61],[357,62,357,71],[357,72,357,81],[357,82,357,91],[355,92,355,113],[356,6,356,15],[356,16,356,51],[356,52,356,61],[356,62,356,71],[356,72,356,81],[356,82,356,91],[356,92,356,113],[355,6,355,15],[355,16,355,51],[355,52,355,61],[355,62,355,71],[355,72,355,81],[355,82,355,91],[353,92,353,113],[354,6,354,15],[354,16,354,51],[354,52,354,61],[354,62,354,71],[354,72,354,81],[354,82,354,91],[354,92,354,113],[353,6,353,15],[353,16,353,51],[353,52,353,61],[353,62,353,71],[353,72,353,81],[353,82,353,91],[351,92,351,113],[352,6,352,15],[352,16,352,51],[352,52,352,61],[352,62,352,71],[352,72,352,81],[352,82,352,91],[352,92,352,113],[351,6,351,15],[351,16,351,51],[351,52,351,61],[351,62,351,71],[351,72,351,81],[351,82,351,91],[349,92,349,113],[350,6,350,15],[350,16,350,51],[350,52,350,61],[350,62,350,71],[350,72,350,81],[350,82,350,91],[350,92,350,113],[349,6,349,15],[349,16,349,51],[349,52,349,61],[349,62,349,71],[349,72,349,81],[349,82,349,91],[347,92,347,113],[348,6,348,15],[348,16,348,51],[348,52,348,61],[348,62,348,71],[348,72,348,81],[348,82,348,91],[348,92,348,113],[347,6,347,15],[347,16,347,51],[347,52,347,61],[347,62,347,71],[347,72,347,81],[347,82,347,91],[345,92,345,113],[346,6,346,15],[346,16,346,51],[346,52,346,61],[346,62,346,71],[346,72,346,81],[346,82,346,91],[346,92,346,113],[345,6,345,15],[345,16,345,51],[345,52,345,61],[345,62,345,71],[345,72,345,81],[345,82,345,91],[343,92,343,113],[344,6,344,15],[344,16,344,51],[344,52,344,61],[344,62,344,71],[344,72,344,81],[344,82,344,91],[344,92,344,113],[343,6,343,15],[343,16,343,51],[343,52,343,61],[343,62,343,71],[343,72,343,81],[343,82,343,91],[341,92,341,113],[342,6,342,15],[342,16,342,51],[342,52,342,61],[342,62,342,71],[342,72,342,81],[342,82,342,91],[342,92,342,113],[341,6,341,15],[341,16,341,51],[341,52,341,61],[341,62,341,71],[341,72,341,81],[341,82,341,91],[339,82,339,91],[339,92,339,113],[340,6,340,15],[340,16,340,51],[340,52,340,61],[340,62,340,71],[340,72,340,81],[340,82,340,91],[340,92,340,113],[327,6,330,17],[327,18,330,51],[327,54,330,67],[327,68,330,113],[334,43,337,67],[339,6,339,15],[339,16,339,51],[339,52,339,61],[339,62,339,71],[339,72,339,81],[318,105,321,107],[318,108,321,110],[318,111,321,113],[319,43,323,50],[319,51,323,53],[319,54,323,57],[319,58,323,60],[319,61,323,64],[319,65,323,67],[322,81,325,95],[314,5,316,7],[314,43,317,67],[318,81,321,95],[318,96,321,98],[318,99,321,101],[318,102,321,104],[320,6,324,32],[320,33,324,39],[322,96,325,113],[303,92,303,113],[304,6,304,91],[304,92,304,113],[305,92,307,113],[308,54,310,57],[308,58,310,61],[308,62,310,65],[308,92,310,115],[303,6,303,15],[303,16,303,51],[303,52,303,61],[303,62,303,71],[303,72,303,81],[303,82,303,91],[301,92,301,113],[302,6,302,15],[302,16,302,51],[302,52,302,61],[302,62,302,71],[302,72,302,81],[302,82,302,91],[302,92,302,113],[301,6,301,15],[301,16,301,51],[301,52,301,61],[301,62,301,71],[301,72,301,81],[301,82,301,91],[299,92,299,113],[300,6,300,15],[300,16,300,51],[300,52,300,61],[300,62,300,71],[300,72,300,81],[300,82,300,91],[300,92,300,113],[299,6,299,15],[299,16,299,51],[299,52,299,61],[299,62,299,71],[299,72,299,81],[299,82,299,91],[297,92,297,113],[298,6,298,15],[298,16,298,51],[298,52,298,61],[298,62,298,71],[298,72,298,81],[298,82,298,91],[298,92,298,113],[297,6,297,15],[297,16,297,51],[297,52,297,61],[297,62,297,71],[297,72,297,81],[297,82,297,91],[295,92,295,113],[296,6,296,15],[296,16,296,51],[296,52,296,61],[296,62,296,71],[296,72,296,81],[296,82,296,91],[296,92,296,113],[295,6,295,15],[295,16,295,51],[295,52,295,61],[295,62,295,71],[295,72,295,81],[295,82,295,91],[293,92,293,113],[294,6,294,15],[294,16,294,51],[294,52,294,61],[294,62,294,71],[294,72,294,81],[294,82,294,91],[294,92,294,113],[293,6,293,15],[293,16,293,51],[293,52,293,61],[293,62,293,71],[293,72,293,81],[293,82,293,91],[291,92,291,113],[292,6,292,15],[292,16,292,51],[292,52,292,61],[292,62,292,71],[292,72,292,81],[292,82,292,91],[292,92,292,113],[291,6,291,15],[291,16,291,51],[291,52,291,61],[291,62,291,71],[291,72,291,81],[291,82,291,91],[289,92,289,113],[290,6,290,15],[290,16,290,51],[290,52,290,61],[290,62,290,71],[290,72,290,81],[290,82,290,91],[290,92,290,113],[289,6,289,15],[289,16,289,51],[289,52,289,61],[289,62,289,71],[289,72,289,81],[289,82,289,91],[287,92,287,113],[288,6,288,15],[288,16,288,51],[288,52,288,61],[288,62,288,71],[288,72,288,81],[288,82,288,91],[288,92,288,113],[287,6,287,15],[287,16,287,51],[287,52,287,61],[287,62,287,71],[287,72,287,81],[287,82,287,91],[285,92,285,113],[286,6,286,15],[286,16,286,51],[286,52,286,61],[286,62,286,71],[286,72,286,81],[286,82,286,91],[286,92,286,113],[285,6,285,15],[285,16,285,51],[285,52,285,61],[285,62,285,71],[285,72,285,81],[285,82,285,91],[283,92,283,113],[284,6,284,15],[284,16,284,51],[284,52,284,61],[284,62,284,71],[284,72,284,81],[284,82,284,91],[284,92,284,113],[283,6,283,15],[283,16,283,51],[283,52,283,61],[283,62,283,71],[283,72,283,81],[283,82,283,91],[281,92,281,113],[282,6,282,15],[282,16,282,51],[282,52,282,61],[282,62,282,71],[282,72,282,81],[282,82,282,91],[282,92,282,113],[281,6,281,15],[281,16,281,51],[281,52,281,61],[281,62,281,71],[281,72,281,81],[281,82,281,91],[279,92,279,113],[280,6,280,15],[280,16,280,51],[280,52,280,61],[280,62,280,71],[280,72,280,81],[280,82,280,91],[280,92,280,113],[279,6,279,15],[279,16,279,51],[279,52,279,61],[279,62,279,71],[279,72,279,81],[279,82,279,91],[277,82,277,91],[277,92,277,113],[278,6,278,15],[278,16,278,51],[278,52,278,61],[278,62,278,71],[278,72,278,81],[278,82,278,91],[278,92,278,113],[265,6,268,17],[265,18,268,51],[265,54,268,67],[265,68,268,113],[272,43,275,67],[277,6,277,15],[277,16,277,51],[277,52,277,61],[277,62,277,71],[277,72,277,81],[256,105,259,107],[256,108,259,110],[256,111,259,113],[257,43,261,50],[257,51,261,53],[257,54,261,57],[257,58,261,60],[257,61,261,64],[257,65,261,67],[260,81,263,95],[252,5,254,7],[252,43,255,67],[256,81,259,95],[256,96,259,98],[256,99,259,101],[256,102,259,104],[258,6,262,32],[258,33,262,39],[260,96,263,113],[241,92,241,113],[242,6,242,91],[242,92,242,113],[243,92,245,113],[246,54,248,57],[246,58,248,61],[246,62,248,65],[246,92,248,115],[241,6,241,15],[241,16,241,51],[241,52,241,61],[241,62,241,71],[241,72,241,81],[241,82,241,91],[239,92,239,113],[240,6,240,15],[240,16,240,51],[240,52,240,61],[240,62,240,71],[240,72,240,81],[240,82,240,91],[240,92,240,113],[239,6,239,15],[239,16,239,51],[239,52,239,61],[239,62,239,71],[239,72,239,81],[239,82,239,91],[237,92,237,113],[238,6,238,15],[238,16,238,51],[238,52,238,61],[238,62,238,71],[238,72,238,81],[238,82,238,91],[238,92,238,113],[237,6,237,15],[237,16,237,51],[237,52,237,61],[237,62,237,71],[237,72,237,81],[237,82,237,91],[235,92,235,113],[236,6,236,15],[236,16,236,51],[236,52,236,61],[236,62,236,71],[236,72,236,81],[236,82,236,91],[236,92,236,113],[235,6,235,15],[235,16,235,51],[235,52,235,61],[235,62,235,71],[235,72,235,81],[235,82,235,91],[233,92,233,113],[234,6,234,15],[234,16,234,51],[234,52,234,61],[234,62,234,71],[234,72,234,81],[234,82,234,91],[234,92,234,113],[233,6,233,15],[233,16,233,51],[233,52,233,61],[233,62,233,71],[233,72,233,81],[233,82,233,91],[231,92,231,113],[232,6,232,15],[232,16,232,51],[232,52,232,61],[232,62,232,71],[232,72,232,81],[232,82,232,91],[232,92,232,113],[231,6,231,15],[231,16,231,51],[231,52,231,61],[231,62,231,71],[231,72,231,81],[231,82,231,91],[229,92,229,113],[230,6,230,15],[230,16,230,51],[230,52,230,61],[230,62,230,71],[230,72,230,81],[230,82,230,91],[230,92,230,113],[229,6,229,15],[229,16,229,51],[229,52,229,61],[229,62,229,71],[229,72,229,81],[229,82,229,91],[227,92,227,113],[228,6,228,15],[228,16,228,51],[228,52,228,61],[228,62,228,71],[228,72,228,81],[228,82,228,91],[228,92,228,113],[227,6,227,15],[227,16,227,51],[227,52,227,61],[227,62,227,71],[227,72,227,81],[227,82,227,91],[225,92,225,113],[226,6,226,15],[226,16,226,51],[226,52,226,61],[226,62,226,71],[226,72,226,81],[226,82,226,91],[226,92,226,113],[225,6,225,15],[225,16,225,51],[225,52,225,61],[225,62,225,71],[225,72,225,81],[225,82,225,91],[223,92,223,113],[224,6,224,15],[224,16,224,51],[224,52,224,61],[224,62,224,71],[224,72,224,81],[224,82,224,91],[224,92,224,113],[223,6,223,15],[223,16,223,51],[223,52,223,61],[223,62,223,71],[223,72,223,81],[223,82,223,91],[221,92,221,113],[222,6,222,15],[222,16,222,51],[222,52,222,61],[222,62,222,71],[222,72,222,81],[222,82,222,91],[222,92,222,113],[221,6,221,15],[221,16,221,51],[221,52,221,61],[221,62,221,71],[221,72,221,81],[221,82,221,91],[219,92,219,113],[220,6,220,15],[220,16,220,51],[220,52,220,61],[220,62,220,71],[220,72,220,81],[220,82,220,91],[220,92,220,113],[219,6,219,15],[219,16,219,51],[219,52,219,61],[219,62,219,71],[219,72,219,81],[219,82,219,91],[217,92,217,113],[218,6,218,15],[218,16,218,51],[218,52,218,61],[218,62,218,71],[218,72,218,81],[218,82,218,91],[218,92,218,113],[217,6,217,15],[217,16,217,51],[217,52,217,61],[217,62,217,71],[217,72,217,81],[217,82,217,91],[215,82,215,91],[215,92,215,113],[216,6,216,15],[216,16,216,51],[216,52,216,61],[216,62,216,71],[216,72,216,81],[216,82,216,91],[216,92,216,113],[203,6,206,17],[203,18,206,51],[203,54,206,67],[203,68,206,113],[210,43,213,67],[215,6,215,15],[215,16,215,51],[215,52,215,61],[215,62,215,71],[215,72,215,81],[194,105,197,107],[194,108,197,110],[194,111,197,113],[195,43,199,50],[195,51,199,53],[195,54,199,57],[195,58,199,60],[195,61,199,64],[195,65,199,67],[198,81,201,95],[190,5,192,7],[190,43,193,67],[194,81,197,95],[194,96,197,98],[194,99,197,101],[194,102,197,104],[196,6,200,32],[196,33,200,39],[198,96,201,113],[179,92,179,113],[180,6,180,91],[180,92,180,113],[181,92,183,113],[184,54,186,57],[184,58,186,61],[184,62,186,65],[184,92,186,115],[179,6,179,15],[179,16,179,51],[179,52,179,61],[179,62,179,71],[179,72,179,81],[179,82,179,91],[177,92,177,113],[178,6,178,15],[178,16,178,51],[178,52,178,61],[178,62,178,71],[178,72,178,81],[178,82,178,91],[178,92,178,113],[177,6,177,15],[177,16,177,51],[177,52,177,61],[177,62,177,71],[177,72,177,81],[177,82,177,91],[175,92,175,113],[176,6,176,15],[176,16,176,51],[176,52,176,61],[176,62,176,71],[176,72,176,81],[176,82,176,91],[176,92,176,113],[175,6,175,15],[175,16,175,51],[175,52,175,61],[175,62,175,71],[175,72,175,81],[175,82,175,91],[173,92,173,113],[174,6,174,15],[174,16,174,51],[174,52,174,61],[174,62,174,71],[174,72,174,81],[174,82,174,91],[174,92,174,113],[173,6,173,15],[173,16,173,51],[173,52,173,61],[173,62,173,71],[173,72,173,81],[173,82,173,91],[171,92,171,113],[172,6,172,15],[172,16,172,51],[172,52,172,61],[172,62,172,71],[172,72,172,81],[172,82,172,91],[172,92,172,113],[171,6,171,15],[171,16,171,51],[171,52,171,61],[171,62,171,71],[171,72,171,81],[171,82,171,91],[169,92,169,113],[170,6,170,15],[170,16,170,51],[170,52,170,61],[170,62,170,71],[170,72,170,81],[170,82,170,91],[170,92,170,113],[169,6,169,15],[169,16,169,51],[169,52,169,61],[169,62,169,71],[169,72,169,81],[169,82,169,91],[167,92,167,113],[168,6,168,15],[168,16,168,51],[168,52,168,61],[168,62,168,71],[168,72,168,81],[168,82,168,91],[168,92,168,113],[167,6,167,15],[167,16,167,51],[167,52,167,61],[167,62,167,71],[167,72,167,81],[167,82,167,91],[165,92,165,113],[166,6,166,15],[166,16,166,51],[166,52,166,61],[166,62,166,71],[166,72,166,81],[166,82,166,91],[166,92,166,113],[165,6,165,15],[165,16,165,51],[165,52,165,61],[165,62,165,71],[165,72,165,81],[165,82,165,91],[163,92,163,113],[164,6,164,15],[164,16,164,51],[164,52,164,61],[164,62,164,71],[164,72,164,81],[164,82,164,91],[164,92,164,113],[163,6,163,15],[163,16,163,51],[163,52,163,61],[163,62,163,71],[163,72,163,81],[163,82,163,91],[161,92,161,113],[162,6,162,15],[162,16,162,51],[162,52,162,61],[162,62,162,71],[162,72,162,81],[162,82,162,91],[162,92,162,113],[161,6,161,15],[161,16,161,51],[161,52,161,61],[161,62,161,71],[161,72,161,81],[161,82,161,91],[159,92,159,113],[160,6,160,15],[160,16,160,51],[160,52,160,61],[160,62,160,71],[160,72,160,81],[160,82,160,91],[160,92,160,113],[159,6,159,15],[159,16,159,51],[159,52,159,61],[159,62,159,71],[159,72,159,81],[159,82,159,91],[157,92,157,113],[158,6,158,15],[158,16,158,51],[158,52,158,61],[158,62,158,71],[158,72,158,81],[158,82,158,91],[158,92,158,113],[157,6,157,15],[157,16,157,51],[157,52,157,61],[157,62,157,71],[157,72,157,81],[157,82,157,91],[155,92,155,113],[156,6,156,15],[156,16,156,51],[156,52,156,61],[156,62,156,71],[156,72,156,81],[156,82,156,91],[156,92,156,113],[155,6,155,15],[155,16,155,51],[155,52,155,61],[155,62,155,71],[155,72,155,81],[155,82,155,91],[153,82,153,91],[153,92,153,113],[154,6,154,15],[154,16,154,51],[154,52,154,61],[154,62,154,71],[154,72,154,81],[154,82,154,91],[154,92,154,113],[148,43,151,67],[153,6,153,15],[153,16,153,51],[153,52,153,61],[153,62,153,71],[153,72,153,81],[134,6,138,32],[134,33,138,39],[136,81,139,95],[136,96,139,113],[141,6,144,17],[141,18,144,51],[141,54,144,67],[141,68,144,113],[132,111,135,113],[133,43,137,50],[133,51,137,53],[133,54,137,57],[133,58,137,60],[133,61,137,64],[133,65,137,67],[132,81,135,95],[132,96,135,98],[132,99,135,101],[132,102,135,104],[132,105,135,107],[132,108,135,110],[122,54,124,57],[122,58,124,61],[122,62,124,65],[122,92,124,115],[128,5,130,7],[128,43,131,67],[100,62,103,91],[104,62,107,91],[108,92,110,101],[113,6,120,9],[113,30,120,33],[113,52,120,55],[113,102,120,105],[88,6,107,9],[88,10,91,25],[88,26,91,37],[88,38,91,59],[88,62,90,91],[91,62,93,91],[94,62,97,91],[88,92,90,95],[88,96,90,101],[88,102,90,107],[88,108,90,113],[91,92,93,95],[91,96,93,101],[91,102,93,107],[91,108,93,113],[94,92,97,95],[94,96,97,101],[94,102,97,107],[94,108,97,113],[66,96,68,113],[74,58,77,63],[74,64,77,69],[74,70,77,75],[74,54,77,57],[74,80,77,91],[71,42,73,71],[71,80,73,109],[74,92,77,95],[74,96,77,101],[74,102,77,107],[74,108,77,113],[78,54,81,57],[78,58,81,63],[78,64,81,69],[78,70,81,75],[82,54,85,57],[82,58,85,63],[82,64,85,69],[82,70,85,75],[49,6,49,15],[49,16,49,51],[78,6,81,17],[78,18,81,37],[78,42,81,53],[82,6,85,17],[82,18,85,37],[82,42,85,53],[71,5,73,22],[74,6,77,17],[74,18,77,37],[74,42,77,53],[66,6,68,23],[66,24,68,41],[66,42,68,59],[66,60,68,77],[66,78,68,95],[63,6,65,23],[63,24,65,41],[63,42,65,59],[63,60,65,77],[63,78,65,95],[63,96,65,113],[60,6,62,23],[60,24,62,41],[60,42,62,59],[60,60,62,77],[60,78,62,95],[60,96,62,113],[57,6,59,23],[57,24,59,41],[57,42,59,59],[57,60,59,77],[57,78,59,95],[57,96,59,113],[2,5,4,7],[2,43,5,67],[6,81,9,95],[6,96,9,98],[6,99,9,101],[6,102,9,104],[8,34,12,40],[10,96,13,113],[8,6,12,33],[26,55,28,62],[32,6,35,23],[32,24,35,41],[32,54,35,65],[32,66,35,113],[14,9,16,40],[16,55,18,62],[16,66,18,111],[20,55,24,62],[25,6,29,23],[25,24,29,51],[36,54,39,65],[36,66,39,113],[42,43,45,67],[47,6,47,15],[48,72,48,81],[48,82,48,91],[48,92,48,113]],"merged_total":1057,"flags":["merged_cut"]}
[]
[]
[null,null,null,null,null,{"$f":"LEFT(基本情報入力!$D$27)","v":""},null,null,null,null,null,null,null,null,null,null,null,null,null,null,null,null,null,null,null,null,null,null,null,null,null,null,null,null,null,null,null,null,null,null,null,null,null,"請 求 書"]
[]
[]
[null,null,null,null,null,null,null,null,null,null,null,null,null,null,null,null,null,null,null,null,null,null,null,null,null,null,null,null,null,null,null,null,null,null,null,null,null,null,null,null,null,null,null,null,null,null,null,null,null,null,null,null,null,null,null,null,null,null,null,null,null,null,null,null,null,null,null,null,null,null,null,null,null,null,null,null,null,null,null,null,null,null,null,null,null,null,null,null,null,null,null,null,null,null,null,null,null,null,null,null,null,null,null,null,null,null,null,null,null,null,null,null,null,null,null,null,null,null,null,null,null,null,null,null,null,null,null,null,null,null,null,null,null,null,null,null,null,null,null,null,"消費税端数処理",null,null,null,null,null,null,null,null,null,null,null,null,null,null,null,null,null,{"$f":"消費税マスタ!$D$3","v":"無"}]
[null,null,null,null,null,null,null,null,null,null,null,null,null,null,null,null,null,null,null,null,null,null,null,null,null,null,null,null,null,null,null,null,null,null,null,null,null,null,null,null,null,null,null,null,null,null,null,null,null,null,null,null,null,null,null,null,null,null,null,null,null,null,null,null,null,null,null,null,null,null,null,null,null,null,null,null,null,null,null,null,null,"取引先コード",null,null,null,null,null,null,null,null,null,null,null,null,null,null,{"$f":"IF(基本情報入力!$D$9=\"\",\"\",MID(基本情報入力!$D$9,1,1))","v":""},null,null,{"$f":"IF(基本情報入力!$D$9=\"\",\"\",MID(基本情報入力!$D$9,2,1))","v":""},null,null,{"$f":"IF(基本情報入力!$D$9=\"\",\"\",MID(基本情報入力!$D$9,3,1))","v":""},null,null,{"$f":"IF(基本情報入力!$D$9=\"\",\"\",MID(基本情報入力!$D$9,4,1))","v":""},null,null,{"$f":"IF(基本情報入力!$D$9=\"\",\"\",MID(基本情報入力!$D$9,5,1))","v":""},null,null,{"$f":"IF(基本情報入力!$D$9=\"\",\"\",MID(基本情報入力!$D$9,6,1))","v":""}]
[null,null,null,null,null,null,null,null,null,null,null,null,null,null,null,null,null,null,null,null,null,null,null,null,null,null,null,null,null,null,null,null,null,null,null,null,null,null,null,null,null,null,null,null,null,null,null,null,null,null,null,"年",null,null,null,null,null,null,"月",null,null,null,null,null,null,"日"]
[null,null,null,null,null,null,"埼玉建興株式会社",null,null,null,null,null,null,null,null,null,null,null,null,null,null,null,null,null,null,null,null,null,null,null,null,null,null,null,"御中"]
[]
[null,null,null,null,null,null,null,null,null,null,null,null,null,null,null,null,null,null,null,null,null,null,null,null,null,null,null,null,null,null,null,null,null,null,null,null,null,null,null,null,null,null,null,null,null,null,null,null,null,null,null,null,null,null,null,null,null,null,null,null,null,null,null,null,null,null,null,null,null,null,null,null,null,null,null,null,null,null,null,null,null,"登録番号",null,null,null,null,null,null,null,null,null,null,null,null,null,null,{"$f":"IF(基本情報入力!$D$12=\"\",\"\",\"T\"&基本情報入力!$D$12)","v":""}]
[]
[]
[]
[null,null,null,null,null,null,null,null,null,"下記のとおり御請求申し上げます。"]
[]
[null,null,null,null,null,null,null,null,null,null,null,null,null,null,null,null,null,null,null,null,null,null,null,null,null,null,null,null,null,null,null,null,null,null,null,null,null,null,null,null,null,null,null,null,null,null,null,null,null,null,null,null,null,null,null,"住所",null,null,null,null,null,null,null,null,null,null,{"$f":"IF(基本情報入力!$L$17=\"有\",基本情報入力!$D$17,\"\")","v":0}]
[null,null,null,null,null,null,"当月請求額（税込）",null,null,null,null,null,null,null,null,null,null,null,null,null,null,null,null,null,{"$f":"$CS$67","v":0}]
[]
[]
[null,null,null,null,null,null,null,null,null,null,null,null,null,null,null,null,null,null,null,null,null,null,null,null,null,null,null,null,null,null,null,null,null,null,null,null,null,null,null,null,null,null,null,null,null,null,null,null,null,null,null,null,null,null,null,"会社名\n（氏名）",null,null,null,null,null,null,null,null,null,null,{"$f":"IF(基本情報入力!$L$19=\"有\",基本情報入力!$D$19,\"\")","v":0},null,null,null,null,null,null,null,null,null,null,null,null,null,null,null,null,null,null,null,null,null,null,null,null,null,null,null,null,null,null,null,null,null,null,null,null,"印"]
[null,null,null,null,null,null,"相 殺 金 額（税込）"]
[]
[null,null,null,null,null,null,null,null,null,null,null,null,null,null,null,null,null,null,null,null,null,null,null,null,null,null,null,null,null,null,null,null,null,null,null,null,null,null,null,null,null,null,null,null,null,null,null,null,null,null,null,null,null,null,null,null,null,null,null,null,null,null,null,null,null,null,{"$f":"IF(基本情報入力!$L$19=\"有\",基本情報入力!$D$21,\"\")","v":0}]
[]
[null,null,null,null,null,null,"当月請求額（税込）\n（相殺後）",null,null,null,null,null,null,null,null,null,null,null,null,null,null,null,null,null,{"$f":"$Y$18+$Y$22","v":0}]
[null,null,null,null,null,null,null,null,null,null,null,null,null,null,null,null,null,null,null,null,null,null,null,null,null,null,null,null,null,null,null,null,null,null,null,null,null,null,null,null,null,null,null,null,null,null,null,null,null,null,null,null,null,null,null,"TEL",null,null,null,null,null,null,null,null,null,null,{"$f":"IF(基本情報入力!$L$31=\"有\",基本情報入力!$D$31&\" - \"&基本情報入力!$F$31&\" - \"&基本情報入力!$H$31,\"\")","v":" -  - "}]
[]
[]
[]
[]
[]
[null,null,null,null,null,null,"所長名\n（埼玉建興）",null,null,null,null,null,null,null,null,null,null,null,null,null,null,null,null,null,null,null,null,null,null,null,null,null,null,null,null,null,null,null,null,null,null,null,null,null,null,null,null,null,null,null,null,null,null,null,"工事件名"]
[]
[]
[]
[null,null,null,null,null,null,"注文番号",null,null,null,null,null,null,null,null,null,null,null,null,null,null,null,null,null,{"$f":"IF(基本情報入力!$D$40=\"\",\"\",基本情報入力!$D$40)","v":""},null,null,null,null,null,null,null,null,null,null,null,null,null,null,null,null,null,null,null,null,null,null,null,null,null,null,null,null,null,"品目及内容"]
[]
[]
[]
[]
[]
[null,null,null,null,null,null,null,null,null,null,null,null,null,null,null,null,null,null,null,null,null,null,null,null,null,null,null,null,null,null,null,null,null,null,null,null,null,null,null,null,null,null,null,"内訳明細"]
[]
[]
[]
[]
[null,null,null,null,null,null,"日付",null,null,null,null,null,null,null,null,null,"品目規格又は作業内容",null,null,null,null,null,null,null,null,null,null,null,null,null,null,null,null,null,null,null,null,null,null,null,null,null,null,null,null,null,null,null,null,null,null,null,"単位",null,null,null,null,null,null,null,null,null,"数量",null,null,null,null,null,null,null,null,null,"単価",null,null,null,null,null,null,null,null,null,"消費税区分",null,null,null,null,null,null,null,null,null,"税抜金額"]
[null,null,null,null,null,null,null,null,null,null,null,null,null,null,null,null,null,null,null,null,null,null,null,null,null,null,null,null,null,null,null,null,null,null,null,null,null,null,null,null,null,null,null,null,null,null,null,null,null,null,null,null,null,null,null,null,null,null,null,null,null,null,null,null,null,null,null,null,null,null,null,null,null,null,null,null,null,null,null,null,null,null,null,null,null,null,null,null,null,null,null,null,{"$f":"IF(BU49=\"\",\"\",IF(BK49=\"\",\"数量未入力\",IF(CE49=\"\",\"消費税区分未入力\",ROUNDDOWN(BK49*BU49,0))))","v":""}]
[null,null,null,null,null,null,null,null,null,null,null,null,null,null,null,null,null,null,null,null,null,null,null,null,null,null,null,null,null,null,null,null,null,null,null,null,null,null,null,null,null,null,null,null,null,null,null,null,null,null,null,null,null,null,null,null,null,null,null,null,null,null,null,null,null,null,null,null,null,null,null,null,null,null,null,null,null,null,null,null,null,null,null,null,null,null,null,null,null,null,null,null,{"$f":"IF(BU50=\"\",\"\",IF(BK50=\"\",\"数量未入力\",IF(CE50=\"\",\"消費税区分未入力\",ROUNDDOWN(BK50*BU50,0))))","v":""}]
[null,null,null,null,null,null,null,null,null,null,null,null,null,null,null,null,null,null,null,null,null,null,null,null,null,null,null,null,null,null,null,null,null,null,null,null,null,null,null,null,null,null,null,null,null,null,null,null,null,null,null,null,null,null,null,null,null,null,null,null,null,null,null,null,null,null,null,null,null,null,null,null,null,null,null,null,null,null,null,null,null,null,null,null,null,null,null,null,null,null,null,null,{"$f":"IF(BU51=\"\",\"\",IF(BK51=\"\",\"数量未入力\",IF(CE51=\"\",\"消費税区分未入力\",ROUNDDOWN(BK51*BU51,0))))","v":""}]
[null,null,null,null,null,null,null,null,null,null,null,null,null,null,null,null,null,null,null,null,null,null,null,null,null,null,null,null,null,null,null,null,null,null,null,null,null,null,null,null,null,null,null,null,null,null,null,null,null,null,null,null,null,null,null,null,null,null,null,null,null,null,null,null,null,null,null,null,null,null,null,null,null,null,null,null,null,null,null,null,null,null,null,null,null,null,null,null,null,null,null,null,{"$f":"IF(BU52=\"\",\"\",IF(BK52=\"\",\"数量未入力\",IF(CE52=\"\",\"消費税区分未入力\",ROUNDDOWN(BK52*BU52,0))))","v":""}]
[null,null,null,null,null,null,"頁計",null,null,null,null,null,null,null,null,null,null,null,null,null,null,null,null,null,null,null,null,null,null,null,null,null,null,null,null,null,null,null,null,null,null,null,null,null,null,null,null,null,null,null,null,null,null,null,null,null,null,null,null,null,null,null,null,null,null,null,null,null,null,null,null,null,null,null,null,null,null,null,null,null,null,null,null,null,null,null,null,null,null,null,null,null,{"$f":"SUMIF($CE$49:$CN$52,\"<>*税端数*\",$CO$49:$DJ$52)","v":0}]
[null,null,null,null,null,null,"総合計",null,null,null,null,null,null,null,null,null,null,null,null,null,null,null,null,null,null,null,null,null,null,null,null,null,null,null,null,null,null,null,null,null,null,null,null,null,null,null,null,null,null,null,null,null,null,null,null,null,null,null,null,null,null,null,null,null,null,null,null,null,null,null,null,null,null,null,null,null,null,null,null,null,null,null,null,null,null,null,null,null,null,null,null,null,{"$f":"SUM($CO$53,$CO$181,$CO$243,$CO$305,$CO$367)","v":0}]
[null,null,null,null,null,null,"消費税率別内訳",null,null,null,null,null,null,null,null,null,null,null,null,null,null,null,null,null,null,null,null,null,null,null,null,null,null,null,null,null,null,null,null,null,null,null,null,null,null,null,null,null,null,null,null,null,null,null,null,null,null,null,null,null,null,null,null,null,null,null,null,null,null,null,null,null,null,null,null,null,null,null,null,null,null,null,null,null,null,null,null,null,null,null,null,null,{"$f":"IF(CO155=\"\",\"\",\"※次頁有\")","v":""}]
[]
[]
[null,null,null,null,null,null,"消費税区分",null,null,null,null,null,null,null,null,null,null,null,null,null,null,null,null,null,"１０％",null,null,null,null,null,null,null,null,null,null,null,null,null,null,null,null,null,"８％（軽）",null,null,null,null,null,null,null,null,null,null,null,null,null,null,null,null,null,"８％",null,null,null,null,null,null,null,null,null,null,null,null,null,null,null,null,null,"対象外",null,null,null,null,null,null,null,null,null,null,null,null,null,null,null,null,null,"総合計"]
[]
[]
[null,null,null,null,null,null,"税抜金額",null,null,null,null,null,null,null,null,null,null,null,null,100000000,null,null,null,null,{"$f":"SUM(SUMIF($CE$49:$CN$52,\"１０％\",$CO$49:$DJ$52),SUMIF($CE$155:$CN$180,\"１０％\",$CO$155:$DJ$180),SUMIF($CE$217:$CN$242,\"１０％\",$CO$217:$DJ$242),SUMIF($CE$279:$CN$304,\"１０％\",$CO$279:$DJ$304),SUMIF($CE$341:$CN$366,\"１０％\",$CO$341:$DJ$366))","v":0},null,null,null,null,null,null,null,null,null,null,null,null,null,null,null,null,null,{"$f":"SUM(SUMIF($CE$49:$CN$52,\"８％(軽)\",$CO$49:$DJ$52),SUMIF($CE$155:$CN$180,\"８％(軽)\",$CO$155:$DJ$180),SUMIF($CE$217:$CN$242,\"８％(軽)\",$CO$217:$DJ$242),SUMIF($CE$279:$CN$304,\"８％(軽)\",$CO$279:$DJ$304),SUMIF($CE$341:$CN$366,\"８％(軽)\",$CO$341:$DJ$366))","v":0},null,null,null,null,null,null,null,null,null,null,null,null,null,null,null,null,null,null,null,null,null,null,null,null,null,null,null,null,null,null,null,null,null,null,null,{"$f":"SUM(SUMIF($CE$49:$CN$52,\"対象外\",$CO$49:$DJ$52),SUMIF($CE$155:$CN$180,\"対象外\",$CO$155:$DJ$180),SUMIF($CE$217:$CN$242,\"対象外\",$CO$217:$DJ$242),SUMIF($CE$279:$CN$304,\"対象外\",$CO$279:$DJ$304),SUMIF($CE$341:$CN$366,\"対象外\",$CO$341:$DJ$366))","v":0},null,null,null,null,null,null,null,null,null,null,null,null,null,null,null,null,null,{"$f":"SUM(Y61:CR63)","v":0}]
[]
[]
[null,null,null,null,null,null,"消費税額",null,null,null,null,null,null,null,null,null,null,null,null,10000000,null,null,null,null,{"$f":"IF(Y61=\"\",\"\",SUM(ROUNDDOWN(Y61*10%,0),SUM(SUMIF($CE$49:$CN$52,\"税端数１０％\",$CO$49:$DJ$52),SUMIF($CE$155:$CN$180,\"税端数１０％\",$CO$155:$DJ$180),SUMIF($CE$217:$CN$242,\"税端数１０％\",$CO$217:$DJ$242),SUMIF($CE$279:$CN$304,\"税端数１０％\",$CO$279:$DJ$304),SUMIF($CE$341:$CN$366,\"税端数１０％\",$CO$341:$DJ$366))))","v":0},null,null,null,null,null,null,null,null,null,null,null,null,null,null,null,null,null,{"$f":"IF(AQ61=\"\",\"\",SUM(ROUNDDOWN(AQ61*8%,0),SUM(SUMIF($CE$49:$CN$52,\"税端数８％(軽)\",$CO$49:$DJ$52),SUMIF($CE$155:$CN$180,\"税端数８％(軽)\",$CO$155:$DJ$180),SUMIF($CE$217:$CN$242,\"税端数８％(軽)\",$CO$217:$DJ$242),SUMIF($CE$279:$CN$304,\"税端数８％(軽)\",$CO$279:$DJ$304),SUMIF($CE$341:$CN$366,\"税端数８％(軽)\",$CO$341:$DJ$366))))","v":0},null,null,null,null,null,null,null,null,null,null,null,null,null,null,null,null,null,null,null,null,null,null,null,null,null,null,null,null,null,null,null,null,null,null,null,{"$f":"IF(CA61=\"\",\"\",ROUNDDOWN(CA61*0,0))","v":0},null,null,null,null,null,null,null,null,null,null,null,null,null,null,null,null,null,{"$f":"SUM(Y64:CR66)","v":0}]
[]
[]
[null,null,null,null,null,null,"税込金額",null,null,null,null,null,null,null,null,null,null,null,null,110000000,null,null,null,null,{"$f":"IF(Y61=\"\",\"\",SUM(Y61:AP66))","v":0},null,null,null,null,null,null,null,null,null,null,null,null,null,null,null,null,null,{"$f":"IF(AQ61=\"\",\"\",SUM(AQ61:BH66))","v":0},null,null,null,null,null,null,null,null,null,null,null,null,null,null,null,null,null,null,null,null,null,null,null,null,null,null,null,null,null,null,null,null,null,null,null,{"$f":"IF(CA61=\"\",\"\",SUM(CA61:CR66))","v":0},null,null,null,null,null,null,null,null,null,null,null,null,null,null,null,null,null,{"$f":"IF(CS61=\"\",\"\",SUM(CS61:DJ66))","v":0}]
[]
[]
[]
[]
[null,null,null,null,null,"※担当者記入欄",null,null,null,null,null,null,null,null,null,null,null,null,null,null,null,null,null,null,null,null,null,null,null,null,null,null,null,null,null,null,null,null,null,null,null,null,"注文金額（税抜）",null,null,null,null,null,null,null,null,null,null,null,null,null,null,null,null,null,null,null,null,null,null,null,null,null,null,null,null,null,null,null,null,null,null,null,null,null,"既出来高金額（税抜）"]
[]
[]
[null,null,null,null,null,null,"部門コード\n工事番号",null,null,null,null,null,null,null,null,null,null,null,{"$f":"IF(基本情報入力!$D$37=\"\",\"\",LEFT(基本情報入力!$D$37,5))","v":""},null,null,null,null,null,null,null,null,null,null,null,null,null,null,null,null,null,null,null,null,null,null,null,"当初金額",null,null,null,null,null,null,null,null,null,null,null,{"$f":"IFERROR(IF(基本情報入力!$D$43=\"\",\"\",RIGHT(LEFT(基本情報入力!$D$43,LEN(基本情報入力!$D$43)-9),1)),\"\")","v":""},null,null,null,{"$f":"IFERROR(IF(基本情報入力!$D$43=\"\",\"\",RIGHT(LEFT(基本情報入力!$D$43,LEN(基本情報入力!$D$43)-6),3)),\"\")","v":""},null,null,null,null,null,{"$f":"IFERROR(IF(基本情報入力!$D$43=\"\",\"\",RIGHT(LEFT(基本情報入力!$D$43,LEN(基本情報入力!$D$43)-3),3)),\"\")","v":""},null,null,null,null,null,{"$f":"IF(基本情報入力!$D$43=\"\",\"\",RIGHT(基本情報入力!$D$43,3))","v":""},null,null,null,null,null,null,null,null,null,"請求済額"]
[]
[]
[]
[null,null,null,null,null,null,"注文番号",null,null,null,null,null,null,null,null,null,null,null,{"$f":"IF($Y$37=\"\",\"\",$Y$37)","v":""},null,null,null,null,null,null,null,null,null,null,null,null,null,null,null,null,null,null,null,null,null,null,null,"増減金額"]
[]
[]
[]
[null,null,null,null,null,null,"決裁番号",null,null,null,null,null,null,null,null,null,null,null,null,null,null,null,null,null,null,null,null,null,null,null,null,null,null,null,null,null,null,null,null,null,null,null,"合計"]
[]
[]
[]
[]
[]
[null,null,null,null,null,null,"工種及要素 内訳",null,null,null,"経理科目コード",null,null,null,null,null,null,null,null,null,null,null,null,null,null,null,"工種コード",null,null,null,null,null,null,null,null,null,null,null,"税抜金額",null,null,null,null,null,null,null,null,null,null,null,null,null,null,null,null,null,null,null,null,null,null,null,"当月請求額（税込）",null,null,null,null,null,null,null,null,null,null,null,null,null,null,null,null,null,null,null,null,null,null,null,null,null,null,null,null,null,{"$f":"IFERROR(IF($Y$18=\"\",\"\",RIGHT(LEFT($Y$18,LEN($Y$18)-9),1)),\"\")","v":""},null,null,null,{"$f":"IFERROR(IF($Y$18=\"\",\"\",RIGHT(LEFT($Y$18,LEN($Y$18)-6),3)),\"\")","v":""},null,null,null,null,null,{"$f":"IFERROR(IF($Y$18=\"\",\"\",RIGHT(LEFT($Y$18,LEN($Y$18)-3),3)),\"\")","v":""},null,null,null,null,null,{"$f":"IF($Y$18=\"\",\"\",RIGHT($Y$18,3))","v":"0"}]
[]
[]
[null,null,null,null,null,null,null,null,null,null,null,null,null,null,null,null,null,null,null,null,null,null,null,null,null,null,null,null,null,null,null,null,null,null,null,null,null,null,null,null,null,null,null,null,null,null,null,null,null,null,null,null,null,null,null,null,null,null,null,null,null,null,"相 殺 金 額（税込）",null,null,null,null,null,null,null,null,null,null,null,null,null,null,null,null,null,null,null,null,null,null,null,null,null,null,null,null,null,"▲",null,null,null,{"$f":"IFERROR(IF($Y$22=\"\",\"\",SUBSTITUTE(RIGHT(LEFT($Y$22,LEN($Y$22)-6),3),\"-\",\"\")),\"\")","v":""},null,null,null,null,null,{"$f":"IFERROR(IF($Y$22=\"\",\"\",SUBSTITUTE(RIGHT(LEFT($Y$22,LEN($Y$22)-3),3),\"-\",\"\")),\"\")","v":""},null,null,null,null,null,{"$f":"IF($Y$22=\"\",\"\",SUBSTITUTE(RIGHT($Y$22,3),\"-\",\"\"))","v":""}]
[]
[]
[null,null,null,null,null,null,null,null,null,null,null,null,null,null,null,null,null,null,null,null,null,null,null,null,null,null,null,null,null,null,null,null,null,null,null,null,null,null,null,null,null,null,null,null,null,null,null,null,null,null,null,null,null,null,null,null,null,null,null,null,null,null,"当月支払額（税込）",null,null,null,null,null,null,null,null,null,null,null,null,null,null,null,null,null,null,null,null,null,null,null,null,null,null,null,null,null,{"$f":"IFERROR(IF($Y$26=\"\",\"\",RIGHT(LEFT($Y$26,LEN($Y$26)-9),1)),\"\")","v":""},null,null,null,{"$f":"IFERROR(IF($Y$26=\"\",\"\",RIGHT(LEFT($Y$26,LEN($Y$26)-6),3)),\"\")","v":""},null,null,null,null,null,{"$f":"IFERROR(IF($Y$26=\"\",\"\",RIGHT(LEFT($Y$26,LEN($Y$26)-3),3)),\"\")","v":""},null,null,null,null,null,{"$f":"IF($Y$26=\"\",\"\",RIGHT($Y$26,3))","v":"0"}]
[]
[]
[]
[]
[]
[null,null,null,null,null,null,null,null,null,null,null,null,null,null,null,null,null,null,null,null,null,null,null,null,null,null,null,null,null,null,null,null,null,null,null,null,null,null,null,null,null,null,null,null,null,null,null,null,null,null,null,null,null,null,null,null,null,null,null,null,null,null,"当月出来高（税抜）\n（振替を除く額）"]
[]
[]
[]
[null,null,null,null,null,null,null,null,null,null,null,null,null,null,null,null,null,null,null,null,null,null,null,null,null,null,null,null,null,null,null,null,null,null,null,null,null,null,null,null,null,null,null,null,null,null,null,null,null,null,null,null,null,null,null,null,null,null,null,null,null,null,"取極残金（税抜）"]
[]
[]
[]
[null,null,null,null,null,null,null,null,null,null,null,null,null,null,null,null,null,null,null,null,null,null,null,null,null,null,null,null,null,null,null,null,null,null,null,null,null,null,null,null,null,null,null,null,null,null,null,null,null,null,null,null,null,null,null,null,null,null,null,null,null,null,null,null,null,null,null,null,null,null,null,null,null,null,null,null,null,null,null,null,null,null,null,null,null,null,null,null,null,null,null,null,"整理No."]
[]
[]
[]
[]
[null,null,null,null,null,null,"照合印",null,null,null,null,null,null,null,null,null,null,null,null,null,null,null,null,null,null,null,null,null,null,null,"決裁印",null,null,null,null,null,null,null,null,null,null,null,null,null,null,null,null,null,null,null,null,null,"確認印",null,null,null,null,null,null,null,null,null,null,null,null,null,null,null,null,null,null,null,null,null,null,null,null,null,null,null,null,null,null,null,null,null,null,null,null,null,null,null,null,null,null,null,null,null,null,null,null,null,"担当者印"]
[]
[]
[]
[]
[]
[]
[]
[]
[null,null,null,null,null,null,null,null,null,null,null,null,null,null,null,null,null,null,null,null,null,null,null,null,null,null,null,null,null,null,null,null,null,null,null,null,null,null,null,null,null,null,null,null,null,null,null,null,null,null,null,null,null,null,1,null,null,null,"/",null,null,null,{"$f":"SUM(1,IF(COUNTIF(内訳明細2,\"<>\")>0,1),IF(COUNTIF(内訳明細3,\"<>\")>0,1),IF(COUNTIF(内訳明細4,\"<>\")>0,1),IF(COUNTIF(内訳明細5,\"<>\")>0,1))","v":1},null,null,null,null,null,null,null,null,null,null,null,null,null,null,null,null,null,null,null,null,null,null,null,null,null,null,null,null,null,{"$f":"基本情報入力!$J$3","v":"埼玉建興(株)Ver.1.2"}]
[]
[]
[]
[]
[]
[null,null,null,null,null,{"$f":"LEFT(基本情報入力!$D$27)","v":""},null,null,null,null,null,null,null,null,null,null,null,null,null,null,null,null,null,null,null,null,null,null,null,null,null,null,null,null,null,null,null,null,null,null,null,null,null,"請 求 書 ②"]
[]
[]
[]
[null,null,null,null,null,null,null,null,null,null,null,null,null,null,null,null,null,null,null,null,null,null,null,null,null,null,null,null,null,null,null,null,null,null,null,null,null,null,null,null,null,null,null,null,null,null,null,null,null,null,null,null,null,null,null,null,null,null,null,null,null,null,null,null,null,null,null,null,null,null,null,null,null,null,null,null,null,null,null,null,null,"取引先コード",null,null,null,null,null,null,null,null,null,null,null,null,null,null,{"$f":"$CS$7","v":""},null,null,{"$f":"$CV$7","v":""},null,null,{"$f":"$CY$7","v":""},null,null,{"$f":"$DB$7","v":""},null,null,{"$f":"$DE$7","v":""},null,null,{"$f":"$DH$7","v":""}]
[null,null,null,null,null,null,null,null,null,null,null,null,null,null,null,null,null,null,null,null,null,null,null,null,null,null,null,null,null,null,null,null,null,null,null,null,null,null,null,null,null,null,null,{"$f":"IF($AR$8=\"\",\"\",$AR$8)","v":""},null,null,null,null,null,null,null,"年",null,null,{"$f":"IF($BC$8=\"\",\"\",$BC$8)","v":""},null,null,null,"月",null,null,{"$f":"IF($BJ$8=\"\",\"\",$BJ$8)","v":""},null,null,null,"日"]
[null,null,null,null,null,null,"埼玉建興株式会社",null,null,null,null,null,null,null,null,null,null,null,null,null,null,null,null,null,null,null,null,null,null,null,null,null,null,"御中"]
[]
[null,null,null,null,null,null,null,null,null,null,null,null,null,null,null,null,null,null,null,null,null,null,null,null,null,null,null,null,null,null,null,null,null,null,null,null,null,null,null,null,null,null,null,null,null,null,null,null,null,null,null,null,null,null,null,null,null,null,null,null,null,null,null,null,null,null,null,null,null,null,null,null,null,null,null,null,null,null,null,null,null,"登録番号",null,null,null,null,null,null,null,null,null,null,null,null,null,null,{"$f":"$CS$11","v":""}]
[]
[]
[]
[]
[null,null,null,null,null,null,"工事件名",null,null,null,null,null,null,null,null,null,null,null,{"$f":"IF($BO$33=\"\",\"\",$BO$33)","v":""},null,null,null,null,null,null,null,null,null,null,null,null,null,null,null,null,null,null,null,null,null,null,null,null,null,null,null,null,null,null,null,null,null,null,null,"会社名（氏名）",null,null,null,null,null,null,null,null,null,null,null,null,null,{"$f":"IF(基本情報入力!$D$19=\"\",\"\",基本情報入力!$D$19&\"　\"&基本情報入力!$D$21)","v":""}]
[]
[]
[]
[]
[]
[]
[null,null,null,null,null,null,null,null,null,null,null,null,null,null,null,null,null,null,null,null,null,null,null,null,null,null,null,null,null,null,null,null,null,null,null,null,null,null,null,null,null,null,null,"内訳明細②"]
[]
[]
[]
[]
[null,null,null,null,null,null,"日付",null,null,null,null,null,null,null,null,null,"品目規格又は作業内容",null,null,null,null,null,null,null,null,null,null,null,null,null,null,null,null,null,null,null,null,null,null,null,null,null,null,null,null,null,null,null,null,null,null,null,"単位",null,null,null,null,null,null,null,null,null,"数量",null,null,null,null,null,null,null,null,null,"単価",null,null,null,null,null,null,null,null,null,"消費税区分",null,null,null,null,null,null,null,null,null,"税抜金額"]
[null,null,null,null,null,null,null,null,null,null,null,null,null,null,null,null,null,null,null,null,null,null,null,null,null,null,null,null,null,null,null,null,null,null,null,null,null,null,null,null,null,null,null,null,null,null,null,null,null,null,null,null,null,null,null,null,null,null,null,null,null,null,null,null,null,null,null,null,null,null,null,null,null,null,null,null,null,null,null,null,null,null,null,null,null,null,null,null,null,null,null,null,{"$f":"IF(BU155=\"\",\"\",IF(BK155=\"\",\"数量未入力\",IF(CE155=\"\",\"消費税区分未入力\",ROUNDDOWN(BK155*BU155,0))))","v":""}]
[null,null,null,null,null,null,null,null,null,null,null,null,null,null,null,null,null,null,null,null,null,null,null,null,null,null,null,null,null,null,null,null,null,null,null,null,null,null,null,null,null,null,null,null,null,null,null,null,null,null,null,null,null,null,null,null,null,null,null,null,null,null,null,null,null,null,null,null,null,null,null,null,null,null,null,null,null,null,null,null,null,null,null,null,null,null,null,null,null,null,null,null,""]
[null,null,null,null,null,null,null,null,null,null,null,null,null,null,null,null,null,null,null,null,null,null,null,null,null,null,null,null,null,null,null,null,null,null,null,null,null,null,null,null,null,null,null,null,null,null,null,null,null,null,null,null,null,null,null,null,null,null,null,null,null,null,null,null,null,null,null,null,null,null,null,null,null,null,null,null,null,null,null,null,null,null,null,null,null,null,null,null,null,null,null,null,""]
[null,null,null,null,null,null,null,null,null,null,null,null,null,null,null,null,null,null,null,null,null,null,null,null,null,null,null,null,null,null,null,null,null,null,null,null,null,null,null,null,null,null,null,null,null,null,null,null,null,null,null,null,null,null,null,null,null,null,null,null,null,null,null,null,null,null,null,null,null,null,null,null,null,null,null,null,null,null,null,null,null,null,null,null,null,null,null,null,null,null,null,null,""]
[null,null,null,null,null,null,null,null,null,null,null,null,null,null,null,null,null,null,null,null,null,null,null,null,null,null,null,null,null,null,null,null,null,null,null,null,null,null,null,null,null,null,null,null,null,null,null,null,null,null,null,null,null,null,null,null,null,null,null,null,null,null,null,null,null,null,null,null,null,null,null,null,null,null,null,null,null,null,null,null,null,null,null,null,null,null,null,null,null,null,null,null,""]
[null,null,null,null,null,null,null,null,null,null,null,null,null,null,null,null,null,null,null,null,null,null,null,null,null,null,null,null,null,null,null,null,null,null,null,null,null,null,null,null,null,null,null,null,null,null,null,null,null,null,null,null,null,null,null,null,null,null,null,null,null,null,null,null,null,null,null,null,null,null,null,null,null,null,null,null,null,null,null,null,null,null,null,null,null,null,null,null,null,null,null,null,""]
[null,null,null,null,null,null,null,null,null,null,null,null,null,null,null,null,null,null,null,null,null,null,null,null,null,null,null,null,null,null,null,null,null,null,null,null,null,null,null,null,null,null,null,null,null,null,null,null,null,null,null,null,null,null,null,null,null,null,null,null,null,null,null,null,null,null,null,null,null,null,null,null,null,null,null,null,null,null,null,null,null,null,null,null,null,null,null,null,null,null,null,null,""]
[null,null,null,null,null,null,null,null,null,null,null,null,null,null,null,null,null,null,null,null,null,null,null,null,null,null,null,null,null,null,null,null,null,null,null,null,null,null,null,null,null,null,null,null,null,null,null,null,null,null,null,null,null,null,null,null,null,null,null,null,null,null,null,null,null,null,null,null,null,null,null,null,null,null,null,null,null,null,null,null,null,null,null,null,null,null,null,null,null,null,null,null,""]
[null,null,null,null,null,null,null,null,null,null,null,null,null,null,null,null,null,null,null,null,null,null,null,null,null,null,null,null,null,null,null,null,null,null,null,null,null,null,null,null,null,null,null,null,null,null,null,null,null,null,null,null,null,null,null,null,null,null,null,null,null,null,null,null,null,null,null,null,null,null,null,null,null,null,null,null,null,null,null,null,null,null,null,null,null,null,null,null,null,null,null,null,""]
[null,null,null,null,null,null,null,null,null,null,null,null,null,null,null,null,null,null,null,null,null,null,null,null,null,null,null,null,null,null,null,null,null,null,null,null,null,null,null,null,null,null,null,null,null,null,null,null,null,null,null,null,null,null,null,null,null,null,null,null,null,null,null,null,null,null,null,null,null,null,null,null,null,null,null,null,null,null,null,null,null,null,null,null,null,null,null,null,null,null,null,null,""]
[null,null,null,null,null,null,null,null,null,null,null,null,null,null,null,null,null,null,null,null,null,null,null,null,null,null,null,null,null,null,null,null,null,null,null,null,null,null,null,null,null,null,null,null,null,null,null,null,null,null,null,null,null,null,null,null,null,null,null,null,null,null,null,null,null,null,null,null,null,null,null,null,null,null,null,null,null,null,null,null,null,null,null,null,null,null,null,null,null,null,null,null,""]
[null,null,null,null,null,null,null,null,null,null,null,null,null,null,null,null,null,null,null,null,null,null,null,null,null,null,null,null,null,null,null,null,null,null,null,null,null,null,null,null,null,null,null,null,null,null,null,null,null,null,null,null,null,null,null,null,null,null,null,null,null,null,null,null,null,null,null,null,null,null,null,null,null,null,null,null,null,null,null,null,null,null,null,null,null,null,null,null,null,null,null,null,""]
[null,null,null,null,null,null,null,null,null,null,null,null,null,null,null,null,null,null,null,null,null,null,null,null,null,null,null,null,null,null,null,null,null,null,null,null,null,null,null,null,null,null,null,null,null,null,null,null,null,null,null,null,null,null,null,null,null,null,null,null,null,null,null,null,null,null,null,null,null,null,null,null,null,null,null,null,null,null,null,null,null,null,null,null,null,null,null,null,null,null,null,null,""]
[null,null,null,null,null,null,null,null,null,null,null,null,null,null,null,null,null,null,null,null,null,null,null,null,null,null,null,null,null,null,null,null,null,null,null,null,null,null,null,null,null,null,null,null,null,null,null,null,null,null,null,null,null,null,null,null,null,null,null,null,null,null,null,null,null,null,null,null,null,null,null,null,null,null,null,null,null,null,null,null,null,null,null,null,null,null,null,null,null,null,null,null,""]
[null,null,null,null,null,null,null,null,null,null,null,null,null,null,null,null,null,null,null,null,null,null,null,null,null,null,null,null,null,null,null,null,null,null,null,null,null,null,null,null,null,null,null,null,null,null,null,null,null,null,null,null,null,null,null,null,null,null,null,null,null,null,null,null,null,null,null,null,null,null,null,null,null,null,null,null,null,null,null,null,null,null,null,null,null,null,null,null,null,null,null,null,""]
[null,null,null,null,null,null,null,null,null,null,null,null,null,null,null,null,null,null,null,null,null,null,null,null,null,null,null,null,null,null,null,null,null,null,null,null,null,null,null,null,null,null,null,null,null,null,null,null,null,null,null,null,null,null,null,null,null,null,null,null,null,null,null,null,null,null,null,null,null,null,null,null,null,null,null,null,null,null,null,null,null,null,null,null,null,null,null,null,null,null,null,null,""]
[null,null,null,null,null,null,null,null,null,null,null,null,null,null,null,null,null,null,null,null,null,null,null,null,null,null,null,null,null,null,null,null,null,null,null,null,null,null,null,null,null,null,null,null,null,null,null,null,null,null,null,null,null,null,null,null,null,null,null,null,null,null,null,null,null,null,null,null,null,null,null,null,null,null,null,null,null,null,null,null,null,null,null,null,null,null,null,null,null,null,null,null,""]
[null,null,null,null,null,null,null,null,null,null,null,null,null,null,null,null,null,null,null,null,null,null,null,null,null,null,null,null,null,null,null,null,null,null,null,null,null,null,null,null,null,null,null,null,null,null,null,null,null,null,null,null,null,null,null,null,null,null,null,null,null,null,null,null,null,null,null,null,null,null,null,null,null,null,null,null,null,null,null,null,null,null,null,null,null,null,null,null,null,null,null,null,""]
[null,null,null,null,null,null,null,null,null,null,null,null,null,null,null,null,null,null,null,null,null,null,null,null,null,null,null,null,null,null,null,null,null,null,null,null,null,null,null,null,null,null,null,null,null,null,null,null,null,null,null,null,null,null,null,null,null,null,null,null,null,null,null,null,null,null,null,null,null,null,null,null,null,null,null,null,null,null,null,null,null,null,null,null,null,null,null,null,null,null,null,null,""]
[null,null,null,null,null,null,null,null,null,null,null,null,null,null,null,null,null,null,null,null,null,null,null,null,null,null,null,null,null,null,null,null,null,null,null,null,null,null,null,null,null,null,null,null,null,null,null,null,null,null,null,null,null,null,null,null,null,null,null,null,null,null,null,null,null,null,null,null,null,null,null,null,null,null,null,null,null,null,null,null,null,null,null,null,null,null,null,null,null,null,null,null,""]
[null,null,null,null,null,null,null,null,null,null,null,null,null,null,null,null,null,null,null,null,null,null,null,null,null,null,null,null,null,null,null,null,null,null,null,null,null,null,null,null,null,null,null,null,null,null,null,null,null,null,null,null,null,null,null,null,null,null,null,null,null,null,null,null,null,null,null,null,null,null,null,null,null,null,null,null,null,null,null,null,null,null,null,null,null,null,null,null,null,null,null,null,""]
[null,null,null,null,null,null,null,null,null,null,null,null,null,null,null,null,null,null,null,null,null,null,null,null,null,null,null,null,null,null,null,null,null,null,null,null,null,null,null,null,null,null,null,null,null,null,null,null,null,null,null,null,null,null,null,null,null,null,null,null,null,null,null,null,null,null,null,null,null,null,null,null,null,null,null,null,null,null,null,null,null,null,null,null,null,null,null,null,null,null,null,null,""]
[null,null,null,null,null,null,null,null,null,null,null,null,null,null,null,null,null,null,null,null,null,null,null,null,null,null,null,null,null,null,null,null,null,null,null,null,null,null,null,null,null,null,null,null,null,null,null,null,null,null,null,null,null,null,null,null,null,null,null,null,null,null,null,null,null,null,null,null,null,null,null,null,null,null,null,null,null,null,null,null,null,null,null,null,null,null,null,null,null,null,null,null,""]
[null,null,null,null,null,null,null,null,null,null,null,null,null,null,null,null,null,null,null,null,null,null,null,null,null,null,null,null,null,null,null,null,null,null,null,null,null,null,null,null,null,null,null,null,null,null,null,null,null,null,null,null,null,null,null,null,null,null,null,null,null,null,null,null,null,null,null,null,null,null,null,null,null,null,null,null,null,null,null,null,null,null,null,null,null,null,null,null,null,null,null,null,""]
[null,null,null,null,null,null,null,null,null,null,null,null,null,null,null,null,null,null,null,null,null,null,null,null,null,null,null,null,null,null,null,null,null,null,null,null,null,null,null,null,null,null,null,null,null,null,null,null,null,null,null,null,null,null,null,null,null,null,null,null,null,null,null,null,null,null,null,null,null,null,null,null,null,null,null,null,null,null,null,null,null,null,null,null,null,null,null,null,null,null,null,null,""]
[null,null,null,null,null,null,null,null,null,null,null,null,null,null,null,null,null,null,null,null,null,null,null,null,null,null,null,null,null,null,null,null,null,null,null,null,null,null,null,null,null,null,null,null,null,null,null,null,null,null,null,null,null,null,null,null,null,null,null,null,null,null,null,null,null,null,null,null,null,null,null,null,null,null,null,null,null,null,null,null,null,null,null,null,null,null,null,null,null,null,null,null,""]
[null,null,null,null,null,null,"頁計",null,null,null,null,null,null,null,null,null,null,null,null,null,null,null,null,null,null,null,null,null,null,null,null,null,null,null,null,null,null,null,null,null,null,null,null,null,null,null,null,null,null,null,null,null,null,null,null,null,null,null,null,null,null,null,null,null,null,null,null,null,null,null,null,null,null,null,null,null,null,null,null,null,null,null,null,null,null,null,null,null,null,null,null,null,{"$f":"SUMIF($CE$155:$CN$180,\"<>*税端数*\",$CO$155:$DJ$180)","v":0}]
[null,null,null,null,null,null,null,null,null,null,null,null,null,null,null,null,null,null,null,null,null,null,null,null,null,null,null,null,null,null,null,null,null,null,null,null,null,null,null,null,null,null,null,null,null,null,null,null,null,null,null,null,null,null,null,null,null,null,null,null,null,null,null,null,null,null,null,null,null,null,null,null,null,null,null,null,null,null,null,null,null,null,null,null,null,null,null,null,null,null,null,null,{"$f":"IF(CO217=\"\",\"\",\"※次頁有\")","v":""}]
[]
[]
[null,null,null,null,null,null,null,null,null,null,null,null,null,null,null,null,null,null,null,null,null,null,null,null,null,null,null,null,null,null,null,null,null,null,null,null,null,null,null,null,null,null,null,null,null,null,null,null,null,null,null,null,null,null,2,null,null,null,"/",null,null,null,{"$f":"SUM(1,IF(COUNTIF(内訳明細2,\"<>\")>0,1),IF(COUNTIF(内訳明細3,\"<>\")>0,1),IF(COUNTIF(内訳明細4,\"<>\")>0,1),IF(COUNTIF(内訳明細5,\"<>\")>0,1))","v":1},null,null,null,null,null,null,null,null,null,null,null,null,null,null,null,null,null,null,null,null,null,null,null,null,null,null,null,null,null,{"$f":"$CO$123","v":"埼玉建興(株)Ver.1.2"}]
[]
[]
[]
[]
[]
[null,null,null,null,null,{"$f":"LEFT(基本情報入力!$D$27)","v":""},null,null,null,null,null,null,null,null,null,null,null,null,null,null,null,null,null,null,null,null,null,null,null,null,null,null,null,null,null,null,null,null,null,null,null,null,null,"請 求 書 ③"]
[]
[]
[]
[null,null,null,null,null,null,null,null,null,null,null,null,null,null,null,null,null,null,null,null,null,null,null,null,null,null,null,null,null,null,null,null,null,null,null,null,null,null,null,null,null,null,null,null,null,null,null,null,null,null,null,null,null,null,null,null,null,null,null,null,null,null,null,null,null,null,null,null,null,null,null,null,null,null,null,null,null,null,null,null,null,"取引先コード",null,null,null,null,null,null,null,null,null,null,null,null,null,null,{"$f":"$CS$7","v":""},null,null,{"$f":"$CV$7","v":""},null,null,{"$f":"$CY$7","v":""},null,null,{"$f":"$DB$7","v":""},null,null,{"$f":"$DE$7","v":""},null,null,{"$f":"$DH$7","v":""}]
[null,null,null,null,null,null,null,null,null,null,null,null,null,null,null,null,null,null,null,null,null,null,null,null,null,null,null,null,null,null,null,null,null,null,null,null,null,null,null,null,null,null,null,{"$f":"IF($AR$8=\"\",\"\",$AR$8)","v":""},null,null,null,null,null,null,null,"年",null,null,{"$f":"IF($BC$8=\"\",\"\",$BC$8)","v":""},null,null,null,"月",null,null,{"$f":"IF($BJ$8=\"\",\"\",$BJ$8)","v":""},null,null,null,"日"]
[null,null,null,null,null,null,"埼玉建興株式会社",null,null,null,null,null,null,null,null,null,null,null,null,null,null,null,null,null,null,null,null,null,null,null,null,null,null,"御中"]
[]
[null,null,null,null,null,null,null,null,null,null,null,null,null,null,null,null,null,null,null,null,null,null,null,null,null,null,null,null,null,null,null,null,null,null,null,null,null,null,null,null,null,null,null,null,null,null,null,null,null,null,null,null,null,null,null,null,null,null,null,null,null,null,null,null,null,null,null,null,null,null,null,null,null,null,null,null,null,null,null,null,null,"登録番号",null,null,null,null,null,null,null,null,null,null,null,null,null,null,{"$f":"$CS$11","v":""}]
[]
[]
[]
[]
[null,null,null,null,null,null,"工事件名",null,null,null,null,null,null,null,null,null,null,null,{"$f":"IF($BO$33=\"\",\"\",$BO$33)","v":""},null,null,null,null,null,null,null,null,null,null,null,null,null,null,null,null,null,null,null,null,null,null,null,null,null,null,null,null,null,null,null,null,null,null,null,"会社名（氏名）",null,null,null,null,null,null,null,null,null,null,null,null,null,{"$f":"IF(基本情報入力!$D$19=\"\",\"\",基本情報入力!$D$19&\"　\"&基本情報入力!$D$21)","v":""}]
[]
[]
[]
[]
[]
[]
[null,null,null,null,null,null,null,null,null,null,null,null,null,null,null,null,null,null,null,null,null,null,null,null,null,null,null,null,null,null,null,null,null,null,null,null,null,null,null,null,null,null,null,"内訳明細③"]
[]
[]
[]
[]
[null,null,null,null,null,null,"日付",null,null,null,null,null,null,null,null,null,"品目規格又は作業内容",null,null,null,null,null,null,null,null,null,null,null,null,null,null,null,null,null,null,null,null,null,null,null,null,null,null,null,null,null,null,null,null,null,null,null,"単位",null,null,null,null,null,null,null,null,null,"数量",null,null,null,null,null,null,null,null,null,"単価",null,null,null,null,null,null,null,null,null,"消費税区分",null,null,null,null,null,null,null,null,null,"税抜金額"]
[null,null,null,null,null,null,null,null,null,null,null,null,null,null,null,null,null,null,null,null,null,null,null,null,null,null,null,null,null,null,null,null,null,null,null,null,null,null,null,null,null,null,null,null,null,null,null,null,null,null,null,null,null,null,null,null,null,null,null,null,null,null,null,null,null,null,null,null,null,null,null,null,null,null,null,null,null,null,null,null,null,null,null,null,null,null,null,null,null,null,null,null,{"$f":"IF(BU217=\"\",\"\",IF(BK217=\"\",\"数量未入力\",IF(CE217=\"\",\"消費税区分未入力\",ROUNDDOWN(BK217*BU217,0))))","v":""}]
[null,null,null,null,null,null,null,null,null,null,null,null,null,null,null,null,null,null,null,null,null,null,null,null,null,null,null,null,null,null,null,null,null,null,null,null,null,null,null,null,null,null,null,null,null,null,null,null,null,null,null,null,null,null,null,null,null,null,null,null,null,null,null,null,null,null,null,null,null,null,null,null,null,null,null,null,null,null,null,null,null,null,null,null,null,null,null,null,null,null,null,null,""]
[null,null,null,null,null,null,null,null,null,null,null,null,null,null,null,null,null,null,null,null,null,null,null,null,null,null,null,null,null,null,null,null,null,null,null,null,null,null,null,null,null,null,null,null,null,null,null,null,null,null,null,null,null,null,null,null,null,null,null,null,null,null,null,null,null,null,null,null,null,null,null,null,null,null,null,null,null,null,null,null,null,null,null,null,null,null,null,null,null,null,null,null,""]
[null,null,null,null,null,null,null,null,null,null,null,null,null,null,null,null,null,null,null,null,null,null,null,null,null,null,null,null,null,null,null,null,null,null,null,null,null,null,null,null,null,null,null,null,null,null,null,null,null,null,null,null,null,null,null,null,null,null,null,null,null,null,null,null,null,null,null,null,null,null,null,null,null,null,null,null,null,null,null,null,null,null,null,null,null,null,null,null,null,null,null,null,""]
[null,null,null,null,null,null,null,null,null,null,null,null,null,null,null,null,null,null,null,null,null,null,null,null,null,null,null,null,null,null,null,null,null,null,null,null,null,null,null,null,null,null,null,null,null,null,null,null,null,null,null,null,null,null,null,null,null,null,null,null,null,null,null,null,null,null,null,null,null,null,null,null,null,null,null,null,null,null,null,null,null,null,null,null,null,null,null,null,null,null,null,null,""]
[null,null,null,null,null,null,null,null,null,null,null,null,null,null,null,null,null,null,null,null,null,null,null,null,null,null,null,null,null,null,null,null,null,null,null,null,null,null,null,null,null,null,null,null,null,null,null,null,null,null,null,null,null,null,null,null,null,null,null,null,null,null,null,null,null,null,null,null,null,null,null,null,null,null,null,null,null,null,null,null,null,null,null,null,null,null,null,null,null,null,null,null,""]
[null,null,null,null,null,null,null,null,null,null,null,null,null,null,null,null,null,null,null,null,null,null,null,null,null,null,null,null,null,null,null,null,null,null,null,null,null,null,null,null,null,null,null,null,null,null,null,null,null,null,null,null,null,null,null,null,null,null,null,null,null,null,null,null,null,null,null,null,null,null,null,null,null,null,null,null,null,null,null,null,null,null,null,null,null,null,null,null,null,null,null,null,""]
[null,null,null,null,null,null,null,null,null,null,null,null,null,null,null,null,null,null,null,null,null,null,null,null,null,null,null,null,null,null,null,null,null,null,null,null,null,null,null,null,null,null,null,null,null,null,null,null,null,null,null,null,null,null,null,null,null,null,null,null,null,null,null,null,null,null,null,null,null,null,null,null,null,null,null,null,null,null,null,null,null,null,null,null,null,null,null,null,null,null,null,null,""]
[null,null,null,null,null,null,null,null,null,null,null,null,null,null,null,null,null,null,null,null,null,null,null,null,null,null,null,null,null,null,null,null,null,null,null,null,null,null,null,null,null,null,null,null,null,null,null,null,null,null,null,null,null,null,null,null,null,null,null,null,null,null,null,null,null,null,null,null,null,null,null,null,null,null,null,null,null,null,null,null,null,null,null,null,null,null,null,null,null,null,null,null,""]
[null,null,null,null,null,null,null,null,null,null,null,null,null,null,null,null,null,null,null,null,null,null,null,null,null,null,null,null,null,null,null,null,null,null,null,null,null,null,null,null,null,null,null,null,null,null,null,null,null,null,null,null,null,null,null,null,null,null,null,null,null,null,null,null,null,null,null,null,null,null,null,null,null,null,null,null,null,null,null,null,null,null,null,null,null,null,null,null,null,null,null,null,""]
[null,null,null,null,null,null,null,null,null,null,null,null,null,null,null,null,null,null,null,null,null,null,null,null,null,null,null,null,null,null,null,null,null,null,null,null,null,null,null,null,null,null,null,null,null,null,null,null,null,null,null,null,null,null,null,null,null,null,null,null,null,null,null,null,null,null,null,null,null,null,null,null,null,null,null,null,null,null,null,null,null,null,null,null,null,null,null,null,null,null,null,null,""]
[null,null,null,null,null,null,null,null,null,null,null,null,null,null,null,null,null,null,null,null,null,null,null,null,null,null,null,null,null,null,null,null,null,null,null,null,null,null,null,null,null,null,null,null,null,null,null,null,null,null,null,null,null,null,null,null,null,null,null,null,null,null,null,null,null,null,null,null,null,null,null,null,null,null,null,null,null,null,null,null,null,null,null,null,null,null,null,null,null,null,null,null,""]
[null,null,null,null,null,null,null,null,null,null,null,null,null,null,null,null,null,null,null,null,null,null,null,null,null,null,null,null,null,null,null,null,null,null,null,null,null,null,null,null,null,null,null,null,null,null,null,null,null,null,null,null,null,null,null,null,null,null,null,null,null,null,null,null,null,null,null,null,null,null,null,null,null,null,null,null,null,null,null,null,null,null,null,null,null,null,null,null,null,null,null,null,""]
[null,null,null,null,null,null,null,null,null,null,null,null,null,null,null,null,null,null,null,null,null,null,null,null,null,null,null,null,null,null,null,null,null,null,null,null,null,null,null,null,null,null,null,null,null,null,null,null,null,null,null,null,null,null,null,null,null,null,null,null,null,null,null,null,null,null,null,null,null,null,null,null,null,null,null,null,null,null,null,null,null,null,null,null,null,null,null,null,null,null,null,null,""]
[null,null,null,null,null,null,null,null,null,null,null,null,null,null,null,null,null,null,null,null,null,null,null,null,null,null,null,null,null,null,null,null,null,null,null,null,null,null,null,null,null,null,null,null,null,null,null,null,null,null,null,null,null,null,null,null,null,null,null,null,null,null,null,null,null,null,null,null,null,null,null,null,null,null,null,null,null,null,null,null,null,null,null,null,null,null,null,null,null,null,null,null,""]
[null,null,null,null,null,null,null,null,null,null,null,null,null,null,null,null,null,null,null,null,null,null,null,null,null,null,null,null,null,null,null,null,null,null,null,null,null,null,null,null,null,null,null,null,null,null,null,null,null,null,null,null,null,null,null,null,null,null,null,null,null,null,null,null,null,null,null,null,null,null,null,null,null,null,null,null,null,null,null,null,null,null,null,null,null,null,null,null,null,null,null,null,""]
[null,null,null,null,null,null,null,null,null,null,null,null,null,null,null,null,null,null,null,null,null,null,null,null,null,null,null,null,null,null,null,null,null,null,null,null,null,null,null,null,null,null,null,null,null,null,null,null,null,null,null,null,null,null,null,null,null,null,null,null,null,null,null,null,null,null,null,null,null,null,null,null,null,null,null,null,null,null,null,null,null,null,null,null,null,null,null,null,null,null,null,null,""]
[null,null,null,null,null,null,null,null,null,null,null,null,null,null,null,null,null,null,null,null,null,null,null,null,null,null,null,null,null,null,null,null,null,null,null,null,null,null,null,null,null,null,null,null,null,null,null,null,null,null,null,null,null,null,null,null,null,null,null,null,null,null,null,null,null,null,null,null,null,null,null,null,null,null,null,null,null,null,null,null,null,null,null,null,null,null,null,null,null,null,null,null,""]
[null,null,null,null,null,null,null,null,null,null,null,null,null,null,null,null,null,null,null,null,null,null,null,null,null,null,null,null,null,null,null,null,null,null,null,null,null,null,null,null,null,null,null,null,null,null,null,null,null,null,null,null,null,null,null,null,null,null,null,null,null,null,null,null,null,null,null,null,null,null,null,null,null,null,null,null,null,null,null,null,null,null,null,null,null,null,null,null,null,null,null,null,""]
[null,null,null,null,null,null,null,null,null,null,null,null,null,null,null,null,null,null,null,null,null,null,null,null,null,null,null,null,null,null,null,null,null,null,null,null,null,null,null,null,null,null,null,null,null,null,null,null,null,null,null,null,null,null,null,null,null,null,null,null,null,null,null,null,null,null,null,null,null,null,null,null,null,null,null,null,null,null,null,null,null,null,null,null,null,null,null,null,null,null,null,null,""]
[null,null,null,null,null,null,null,null,null,null,null,null,null,null,null,null,null,null,null,null,null,null,null,null,null,null,null,null,null,null,null,null,null,null,null,null,null,null,null,null,null,null,null,null,null,null,null,null,null,null,null,null,null,null,null,null,null,null,null,null,null,null,null,null,null,null,null,null,null,null,null,null,null,null,null,null,null,null,null,null,null,null,null,null,null,null,null,null,null,null,null,null,""]
[null,null,null,null,null,null,null,null,null,null,null,null,null,null,null,null,null,null,null,null,null,null,null,null,null,null,null,null,null,null,null,null,null,null,null,null,null,null,null,null,null,null,null,null,null,null,null,null,null,null,null,null,null,null,null,null,null,null,null,null,null,null,null,null,null,null,null,null,null,null,null,null,null,null,null,null,null,null,null,null,null,null,null,null,null,null,null,null,null,null,null,null,""]
[null,null,null,null,null,null,null,null,null,null,null,null,null,null,null,null,null,null,null,null,null,null,null,null,null,null,null,null,null,null,null,null,null,null,null,null,null,null,null,null,null,null,null,null,null,null,null,null,null,null,null,null,null,null,null,null,null,null,null,null,null,null,null,null,null,null,null,null,null,null,null,null,null,null,null,null,null,null,null,null,null,null,null,null,null,null,null,null,null,null,null,null,""]
[null,null,null,null,null,null,null,null,null,null,null,null,null,null,null,null,null,null,null,null,null,null,null,null,null,null,null,null,null,null,null,null,null,null,null,null,null,null,null,null,null,null,null,null,null,null,null,null,null,null,null,null,null,null,null,null,null,null,null,null,null,null,null,null,null,null,null,null,null,null,null,null,null,null,null,null,null,null,null,null,null,null,null,null,null,null,null,null,null,null,null,null,""]
[null,null,null,null,null,null,null,null,null,null,null,null,null,null,null,null,null,null,null,null,null,null,null,null,null,null,null,null,null,null,null,null,null,null,null,null,null,null,null,null,null,null,null,null,null,null,null,null,null,null,null,null,null,null,null,null,null,null,null,null,null,null,null,null,null,null,null,null,null,null,null,null,null,null,null,null,null,null,null,null,null,null,null,null,null,null,null,null,null,null,null,null,""]
[null,null,null,null,null,null,null,null,null,null,null,null,null,null,null,null,null,null,null,null,null,null,null,null,null,null,null,null,null,null,null,null,null,null,null,null,null,null,null,null,null,null,null,null,null,null,null,null,null,null,null,null,null,null,null,null,null,null,null,null,null,null,null,null,null,null,null,null,null,null,null,null,null,null,null,null,null,null,null,null,null,null,null,null,null,null,null,null,null,null,null,null,""]
[null,null,null,null,null,null,"頁計",null,null,null,null,null,null,null,null,null,null,null,null,null,null,null,null,null,null,null,null,null,null,null,null,null,null,null,null,null,null,null,null,null,null,null,null,null,null,null,null,null,null,null,null,null,null,null,null,null,null,null,null,null,null,null,null,null,null,null,null,null,null,null,null,null,null,null,null,null,null,null,null,null,null,null,null,null,null,null,null,null,null,null,null,null,{"$f":"SUMIF($CE$217:$CN$242,\"<>*税端数*\",$CO$217:$DJ$242)","v":0}]
[null,null,null,null,null,null,null,null,null,null,null,null,null,null,null,null,null,null,null,null,null,null,null,null,null,null,null,null,null,null,null,null,null,null,null,null,null,null,null,null,null,null,null,null,null,null,null,null,null,null,null,null,null,null,null,null,null,null,null,null,null,null,null,null,null,null,null,null,null,null,null,null,null,null,null,null,null,null,null,null,null,null,null,null,null,null,null,null,null,null,null,null,{"$f":"IF(CO279=\"\",\"\",\"※次頁有\")","v":""}]
[]
[]
[null,null,null,null,null,null,null,null,null,null,null,null,null,null,null,null,null,null,null,null,null,null,null,null,null,null,null,null,null,null,null,null,null,null,null,null,null,null,null,null,null,null,null,null,null,null,null,null,null,null,null,null,null,null,3,null,null,null,"/",null,null,null,{"$f":"SUM(1,IF(COUNTIF(内訳明細2,\"<>\")>0,1),IF(COUNTIF(内訳明細3,\"<>\")>0,1),IF(COUNTIF(内訳明細4,\"<>\")>0,1),IF(COUNTIF(内訳明細5,\"<>\")>0,1))","v":1},null,null,null,null,null,null,null,null,null,null,null,null,null,null,null,null,null,null,null,null,null,null,null,null,null,null,null,null,null,{"$f":"$CO$123","v":"埼玉建興(株)Ver.1.2"}]
[]
[]
[]
[]
[]
[null,null,null,null,null,{"$f":"LEFT(基本情報入力!$D$27)","v":""},null,null,null,null,null,null,null,null,null,null,null,null,null,null,null,null,null,null,null,null,null,null,null,null,null,null,null,null,null,null,null,null,null,null,null,null,null,"請 求 書 ④"]
[]
[]
[]
[null,null,null,null,null,null,null,null,null,null,null,null,null,null,null,null,null,null,null,null,null,null,null,null,null,null,null,null,null,null,null,null,null,null,null,null,null,null,null,null,null,null,null,null,null,null,null,null,null,null,null,null,null,null,null,null,null,null,null,null,null,null,null,null,null,null,null,null,null,null,null,null,null,null,null,null,null,null,null,null,null,"取引先コード",null,null,null,null,null,null,null,null,null,null,null,null,null,null,{"$f":"$CS$7","v":""},null,null,{"$f":"$CV$7","v":""},null,null,{"$f":"$CY$7","v":""},null,null,{"$f":"$DB$7","v":""},null,null,{"$f":"$DE$7","v":""},null,null,{"$f":"$DH$7","v":""}]
[null,null,null,null,null,null,null,null,null,null,null,null,null,null,null,null,null,null,null,null,null,null,null,null,null,null,null,null,null,null,null,null,null,null,null,null,null,null,null,null,null,null,null,{"$f":"IF($AR$8=\"\",\"\",$AR$8)","v":""},null,null,null,null,null,null,null,"年",null,null,{"$f":"IF($BC$8=\"\",\"\",$BC$8)","v":""},null,null,null,"月",null,null,{"$f":"IF($BJ$8=\"\",\"\",$BJ$8)","v":""},null,null,null,"日"]
[null,null,null,null,null,null,"埼玉建興株式会社",null,null,null,null,null,null,null,null,null,null,null,null,null,null,null,null,null,null,null,null,null,null,null,null,null,null,"御中"]
[]
[null,null,null,null,null,null,null,null,null,null,null,null,null,null,null,null,null,null,null,null,null,null,null,null,null,null,null,null,null,null,null,null,null,null,null,null,null,null,null,null,null,null,null,null,null,null,null,null,null,null,null,null,null,null,null,null,null,null,null,null,null,null,null,null,null,null,null,null,null,null,null,null,null,null,null,null,null,null,null,null,null,"登録番号",null,null,null,null,null,null,null,null,null,null,null,null,null,null,{"$f":"$CS$11","v":""}]
[]
[]
[]
[]
[null,null,null,null,null,null,"工事件名",null,null,null,null,null,null,null,null,null,null,null,{"$f":"IF($BO$33=\"\",\"\",$BO$33)","v":""},null,null,null,null,null,null,null,null,null,null,null,null,null,null,null,null,null,null,null,null,null,null,null,null,null,null,null,null,null,null,null,null,null,null,null,"会社名（氏名）",null,null,null,null,null,null,null,null,null,null,null,null,null,{"$f":"IF(基本情報入力!$D$19=\"\",\"\",基本情報入力!$D$19&\"　\"&基本情報入力!$D$21)","v":""}]
[]
[]
[]
[]
[]
[]
[null,null,null,null,null,null,null,null,null,null,null,null,null,null,null,null,null,null,null,null,null,null,null,null,null,null,null,null,null,null,null,null,null,null,null,null,null,null,null,null,null,null,null,"内訳明細④"]
[]
[]
[]
[]
[null,null,null,null,null,null,"日付",null,null,null,null,null,null,null,null,null,"品目規格又は作業内容",null,null,null,null,null,null,null,null,null,null,null,null,null,null,null,null,null,null,null,null,null,null,null,null,null,null,null,null,null,null,null,null,null,null,null,"単位",null,null,null,null,null,null,null,null,null,"数量",null,null,null,null,null,null,null,null,null,"単価",null,null,null,null,null,null,null,null,null,"消費税区分",null,null,null,null,null,null,null,null,null,"税抜金額"]
[null,null,null,null,null,null,null,null,null,null,null,null,null,null,null,null,null,null,null,null,null,null,null,null,null,null,null,null,null,null,null,null,null,null,null,null,null,null,null,null,null,null,null,null,null,null,null,null,null,null,null,null,null,null,null,null,null,null,null,null,null,null,null,null,null,null,null,null,null,null,null,null,null,null,null,null,null,null,null,null,null,null,null,null,null,null,null,null,null,null,null,null,{"$f":"IF(BU279=\"\",\"\",IF(BK279=\"\",\"数量未入力\",IF(CE279=\"\",\"消費税区分未入力\",ROUNDDOWN(BK279*BU279,0))))","v":""}]
[null,null,null,null,null,null,null,null,null,null,null,null,null,null,null,null,null,null,null,null,null,null,null,null,null,null,null,null,null,null,null,null,null,null,null,null,null,null,null,null,null,null,null,null,null,null,null,null,null,null,null,null,null,null,null,null,null,null,null,null,null,null,null,null,null,null,null,null,null,null,null,null,null,null,null,null,null,null,null,null,null,null,null,null,null,null,null,null,null,null,null,null,""]
[null,null,null,null,null,null,null,null,null,null,null,null,null,null,null,null,null,null,null,null,null,null,null,null,null,null,null,null,null,null,null,null,null,null,null,null,null,null,null,null,null,null,null,null,null,null,null,null,null,null,null,null,null,null,null,null,null,null,null,null,null,null,null,null,null,null,null,null,null,null,null,null,null,null,null,null,null,null,null,null,null,null,null,null,null,null,null,null,null,null,null,null,""]
[null,null,null,null,null,null,null,null,null,null,null,null,null,null,null,null,null,null,null,null,null,null,null,null,null,null,null,null,null,null,null,null,null,null,null,null,null,null,null,null,null,null,null,null,null,null,null,null,null,null,null,null,null,null,null,null,null,null,null,null,null,null,null,null,null,null,null,null,null,null,null,null,null,null,null,null,null,null,null,null,null,null,null,null,null,null,null,null,null,null,null,null,""]
[null,null,null,null,null,null,null,null,null,null,null,null,null,null,null,null,null,null,null,null,null,null,null,null,null,null,null,null,null,null,null,null,null,null,null,null,null,null,null,null,null,null,null,null,null,null,null,null,null,null,null,null,null,null,null,null,null,null,null,null,null,null,null,null,null,null,null,null,null,null,null,null,null,null,null,null,null,null,null,null,null,null,null,null,null,null,null,null,null,null,null,null,""]
[null,null,null,null,null,null,null,null,null,null,null,null,null,null,null,null,null,null,null,null,null,null,null,null,null,null,null,null,null,null,null,null,null,null,null,null,null,null,null,null,null,null,null,null,null,null,null,null,null,null,null,null,null,null,null,null,null,null,null,null,null,null,null,null,null,null,null,null,null,null,null,null,null,null,null,null,null,null,null,null,null,null,null,null,null,null,null,null,null,null,null,null,""]
[null,null,null,null,null,null,null,null,null,null,null,null,null,null,null,null,null,null,null,null,null,null,null,null,null,null,null,null,null,null,null,null,null,null,null,null,null,null,null,null,null,null,null,null,null,null,null,null,null,null,null,null,null,null,null,null,null,null,null,null,null,null,null,null,null,null,null,null,null,null,null,null,null,null,null,null,null,null,null,null,null,null,null,null,null,null,null,null,null,null,null,null,""]
[null,null,null,null,null,null,null,null,null,null,null,null,null,null,null,null,null,null,null,null,null,null,null,null,null,null,null,null,null,null,null,null,null,null,null,null,null,null,null,null,null,null,null,null,null,null,null,null,null,null,null,null,null,null,null,null,null,null,null,null,null,null,null,null,null,null,null,null,null,null,null,null,null,null,null,null,null,null,null,null,null,null,null,null,null,null,null,null,null,null,null,null,""]
[null,null,null,null,null,null,null,null,null,null,null,null,null,null,null,null,null,null,null,null,null,null,null,null,null,null,null,null,null,null,null,null,null,null,null,null,null,null,null,null,null,null,null,null,null,null,null,null,null,null,null,null,null,null,null,null,null,null,null,null,null,null,null,null,null,null,null,null,null,null,null,null,null,null,null,null,null,null,null,null,null,null,null,null,null,null,null,null,null,null,null,null,""]
[null,null,null,null,null,null,null,null,null,null,null,null,null,null,null,null,null,null,null,null,null,null,null,null,null,null,null,null,null,null,null,null,null,null,null,null,null,null,null,null,null,null,null,null,null,null,null,null,null,null,null,null,null,null,null,null,null,null,null,null,null,null,null,null,null,null,null,null,null,null,null,null,null,null,null,null,null,null,null,null,null,null,null,null,null,null,null,null,null,null,null,null,""]
[null,null,null,null,null,null,null,null,null,null,null,null,null,null,null,null,null,null,null,null,null,null,null,null,null,null,null,null,null,null,null,null,null,null,null,null,null,null,null,null,null,null,null,null,null,null,null,null,null,null,null,null,null,null,null,null,null,null,null,null,null,null,null,null,null,null,null,null,null,null,null,null,null,null,null,null,null,null,null,null,null,null,null,null,null,null,null,null,null,null,null,null,""]
[null,null,null,null,null,null,null,null,null,null,null,null,null,null,null,null,null,null,null,null,null,null,null,null,null,null,null,null,null,null,null,null,null,null,null,null,null,null,null,null,null,null,null,null,null,null,null,null,null,null,null,null,null,null,null,null,null,null,null,null,null,null,null,null,null,null,null,null,null,null,null,null,null,null,null,null,null,null,null,null,null,null,null,null,null,null,null,null,null,null,null,null,""]
[null,null,null,null,null,null,null,null,null,null,null,null,null,null,null,null,null,null,null,null,null,null,null,null,null,null,null,null,null,null,null,null,null,null,null,null,null,null,null,null,null,null,null,null,null,null,null,null,null,null,null,null,null,null,null,null,null,null,null,null,null,null,null,null,null,null,null,null,null,null,null,null,null,null,null,null,null,null,null,null,null,null,null,null,null,null,null,null,null,null,null,null,""]
[null,null,null,null,null,null,null,null,null,null,null,null,null,null,null,null,null,null,null,null,null,null,null,null,null,null,null,null,null,null,null,null,null,null,null,null,null,null,null,null,null,null,null,null,null,null,null,null,null,null,null,null,null,null,null,null,null,null,null,null,null,null,null,null,null,null,null,null,null,null,null,null,null,null,null,null,null,null,null,null,null,null,null,null,null,null,null,null,null,null,null,null,""]
[null,null,null,null,null,null,null,null,null,null,null,null,null,null,null,null,null,null,null,null,null,null,null,null,null,null,null,null,null,null,null,null,null,null,null,null,null,null,null,null,null,null,null,null,null,null,null,null,null,null,null,null,null,null,null,null,null,null,null,null,null,null,null,null,null,null,null,null,null,null,null,null,null,null,null,null,null,null,null,null,null,null,null,null,null,null,null,null,null,null,null,null,""]
[null,null,null,null,null,null,null,null,null,null,null,null,null,null,null,null,null,null,null,null,null,null,null,null,null,null,null,null,null,null,null,null,null,null,null,null,null,null,null,null,null,null,null,null,null,null,null,null,null,null,null,null,null,null,null,null,null,null,null,null,null,null,null,null,null,null,null,null,null,null,null,null,null,null,null,null,null,null,null,null,null,null,null,null,null,null,null,null,null,null,null,null,""]
[null,null,null,null,null,null,null,null,null,null,null,null,null,null,null,null,null,null,null,null,null,null,null,null,null,null,null,null,null,null,null,null,null,null,null,null,null,null,null,null,null,null,null,null,null,null,null,null,null,null,null,null,null,null,null,null,null,null,null,null,null,null,null,null,null,null,null,null,null,null,null,null,null,null,null,null,null,null,null,null,null,null,null,null,null,null,null,null,null,null,null,null,""]
[null,null,null,null,null,null,null,null,null,null,null,null,null,null,null,null,null,null,null,null,null,null,null,null,null,null,null,null,null,null,null,null,null,null,null,null,null,null,null,null,null,null,null,null,null,null,null,null,null,null,null,null,null,null,null,null,null,null,null,null,null,null,null,null,null,null,null,null,null,null,null,null,null,null,null,null,null,null,null,null,null,null,null,null,null,null,null,null,null,null,null,null,""]
[null,null,null,null,null,null,null,null,null,null,null,null,null,null,null,null,null,null,null,null,null,null,null,null,null,null,null,null,null,null,null,null,null,null,null,null,null,null,null,null,null,null,null,null,null,null,null,null,null,null,null,null,null,null,null,null,null,null,null,null,null,null,null,null,null,null,null,null,null,null,null,null,null,null,null,null,null,null,null,null,null,null,null,null,null,null,null,null,null,null,null,null,""]
[null,null,null,null,null,null,null,null,null,null,null,null,null,null,null,null,null,null,null,null,null,null,null,null,null,null,null,null,null,null,null,null,null,null,null,null,null,null,null,null,null,null,null,null,null,null,null,null,null,null,null,null,null,null,null,null,null,null,null,null,null,null,null,null,null,null,null,null,null,null,null,null,null,null,null,null,null,null,null,null,null,null,null,null,null,null,null,null,null,null,null,null,""]
[null,null,null,null,null,null,null,null,null,null,null,null,null,null,null,null,null,null,null,null,null,null,null,null,null,null,null,null,null,null,null,null,null,null,null,null,null,null,null,null,null,null,null,null,null,null,null,null,null,null,null,null,null,null,null,null,null,null,null,null,null,null,null,null,null,null,null,null,null,null,null,null,null,null,null,null,null,null,null,null,null,null,null,null,null,null,null,null,null,null,null,null,""]
[null,null,null,null,null,null,null,null,null,null,null,null,null,null,null,null,null,null,null,null,null,null,null,null,null,null,null,null,null,null,null,null,null,null,null,null,null,null,null,null,null,null,null,null,null,null,null,null,null,null,null,null,null,null,null,null,null,null,null,null,null,null,null,null,null,null,null,null,null,null,null,null,null,null,null,null,null,null,null,null,null,null,null,null,null,null,null,null,null,null,null,null,""]
[null,null,null,null,null,null,null,null,null,null,null,null,null,null,null,null,null,null,null,null,null,null,null,null,null,null,null,null,null,null,null,null,null,null,null,null,null,null,null,null,null,null,null,null,null,null,null,null,null,null,null,null,null,null,null,null,null,null,null,null,null,null,null,null,null,null,null,null,null,null,null,null,null,null,null,null,null,null,null,null,null,null,null,null,null,null,null,null,null,null,null,null,""]
[null,null,null,null,null,null,null,null,null,null,null,null,null,null,null,null,null,null,null,null,null,null,null,null,null,null,null,null,null,null,null,null,null,null,null,null,null,null,null,null,null,null,null,null,null,null,null,null,null,null,null,null,null,null,null,null,null,null,null,null,null,null,null,null,null,null,null,null,null,null,null,null,null,null,null,null,null,null,null,null,null,null,null,null,null,null,null,null,null,null,null,null,""]
[null,null,null,null,null,null,null,null,null,null,null,null,null,null,null,null,null,null,null,null,null,null,null,null,null,null,null,null,null,null,null,null,null,null,null,null,null,null,null,null,null,null,null,null,null,null,null,null,null,null,null,null,null,null,null,null,null,null,null,null,null,null,null,null,null,null,null,null,null,null,null,null,null,null,null,null,null,null,null,null,null,null,null,null,null,null,null,null,null,null,null,null,""]
[null,null,null,null,null,null,null,null,null,null,null,null,null,null,null,null,null,null,null,null,null,null,null,null,null,null,null,null,null,null,null,null,null,null,null,null,null,null,null,null,null,null,null,null,null,null,null,null,null,null,null,null,null,null,null,null,null,null,null,null,null,null,null,null,null,null,null,null,null,null,null,null,null,null,null,null,null,null,null,null,null,null,null,null,null,null,null,null,null,null,null,null,""]
[null,null,null,null,null,null,"頁計",null,null,null,null,null,null,null,null,null,null,null,null,null,null,null,null,null,null,null,null,null,null,null,null,null,null,null,null,null,null,null,null,null,null,null,null,null,null,null,null,null,null,null,null,null,null,null,null,null,null,null,null,null,null,null,null,null,null,null,null,null,null,null,null,null,null,null,null,null,null,null,null,null,null,null,null,null,null,null,null,null,null,null,null,null,{"$f":"SUMIF($CE$279:$CN$304,\"<>*税端数*\",$CO$279:$DJ$304)","v":0}]
[null,null,null,null,null,null,null,null,null,null,null,null,null,null,null,null,null,null,null,null,null,null,null,null,null,null,null,null,null,null,null,null,null,null,null,null,null,null,null,null,null,null,null,null,null,null,null,null,null,null,null,null,null,null,null,null,null,null,null,null,null,null,null,null,null,null,null,null,null,null,null,null,null,null,null,null,null,null,null,null,null,null,null,null,null,null,null,null,null,null,null,null,{"$f":"IF(CO341=\"\",\"\",\"※次頁有\")","v":""}]
[]
[]
[null,null,null,null,null,null,null,null,null,null,null,null,null,null,null,null,null,null,null,null,null,null,null,null,null,null,null,null,null,null,null,null,null,null,null,null,null,null,null,null,null,null,null,null,null,null,null,null,null,null,null,null,null,null,4,null,null,null,"/",null,null,null,{"$f":"SUM(1,IF(COUNTIF(内訳明細2,\"<>\")>0,1),IF(COUNTIF(内訳明細3,\"<>\")>0,1),IF(COUNTIF(内訳明細4,\"<>\")>0,1),IF(COUNTIF(内訳明細5,\"<>\")>0,1))","v":1},null,null,null,null,null,null,null,null,null,null,null,null,null,null,null,null,null,null,null,null,null,null,null,null,null,null,null,null,null,{"$f":"$CO$123","v":"埼玉建興(株)Ver.1.2"}]
[]
[]
[]
[]
[]
[null,null,null,null,null,{"$f":"LEFT(基本情報入力!$D$27)","v":""},null,null,null,null,null,null,null,null,null,null,null,null,null,null,null,null,null,null,null,null,null,null,null,null,null,null,null,null,null,null,null,null,null,null,null,null,null,"請 求 書 ⑤"]
[]
[]
[]
[null,null,null,null,null,null,null,null,null,null,null,null,null,null,null,null,null,null,null,null,null,null,null,null,null,null,null,null,null,null,null,null,null,null,null,null,null,null,null,null,null,null,null,null,null,null,null,null,null,null,null,null,null,null,null,null,null,null,null,null,null,null,null,null,null,null,null,null,null,null,null,null,null,null,null,null,null,null,null,null,null,"取引先コード",null,null,null,null,null,null,null,null,null,null,null,null,null,null,{"$f":"$CS$7","v":""},null,null,{"$f":"$CV$7","v":""},null,null,{"$f":"$CY$7","v":""},null,null,{"$f":"$DB$7","v":""},null,null,{"$f":"$DE$7","v":""},null,null,{"$f":"$DH$7","v":""}]
[null,null,null,null,null,null,null,null,null,null,null,null,null,null,null,null,null,null,null,null,null,null,null,null,null,null,null,null,null,null,null,null,null,null,null,null,null,null,null,null,null,null,null,{"$f":"IF($AR$8=\"\",\"\",$AR$8)","v":""},null,null,null,null,null,null,null,"年",null,null,{"$f":"IF($BC$8=\"\",\"\",$BC$8)","v":""},null,null,null,"月",null,null,{"$f":"IF($BJ$8=\"\",\"\",$BJ$8)","v":""},null,null,null,"日"]
[null,null,null,null,null,null,"埼玉建興株式会社",null,null,null,null,null,null,null,null,null,null,null,null,null,null,null,null,null,null,null,null,null,null,null,null,null,null,"御中"]
[]
[null,null,null,null,null,null,null,null,null,null,null,null,null,null,null,null,null,null,null,null,null,null,null,null,null,null,null,null,null,null,null,null,null,null,null,null,null,null,null,null,null,null,null,null,null,null,null,null,null,null,null,null,null,null,null,null,null,null,null,null,null,null,null,null,null,null,null,null,null,null,null,null,null,null,null,null,null,null,null,null,null,"登録番号",null,null,null,null,null,null,null,null,null,null,null,null,null,null,{"$f":"$CS$11","v":""}]
[]
[]
[]
[]
[null,null,null,null,null,null,"工事件名",null,null,null,null,null,null,null,null,null,null,null,{"$f":"IF($BO$33=\"\",\"\",$BO$33)","v":""},null,null,null,null,null,null,null,null,null,null,null,null,null,null,null,null,null,null,null,null,null,null,null,null,null,null,null,null,null,null,null,null,null,null,null,"会社名（氏名）",null,null,null,null,null,null,null,null,null,null,null,null,null,{"$f":"IF(基本情報入力!$D$19=\"\",\"\",基本情報入力!$D$19&\"　\"&基本情報入力!$D$21)","v":""}]
[]
[]
[]
[]
[]
[]
[null,null,null,null,null,null,null,null,null,null,null,null,null,null,null,null,null,null,null,null,null,null,null,null,null,null,null,null,null,null,null,null,null,null,null,null,null,null,null,null,null,null,null,"内訳明細⑤"]
[]
[]
[]
[]
[null,null,null,null,null,null,"日付",null,null,null,null,null,null,null,null,null,"品目規格又は作業内容",null,null,null,null,null,null,null,null,null,null,null,null,null,null,null,null,null,null,null,null,null,null,null,null,null,null,null,null,null,null,null,null,null,null,null,"単位",null,null,null,null,null,null,null,null,null,"数量",null,null,null,null,null,null,null,null,null,"単価",null,null,null,null,null,null,null,null,null,"消費税区分",null,null,null,null,null,null,null,null,null,"税抜金額"]
[null,null,null,null,null,null,null,null,null,null,null,null,null,null,null,null,null,null,null,null,null,null,null,null,null,null,null,null,null,null,null,null,null,null,null,null,null,null,null,null,null,null,null,null,null,null,null,null,null,null,null,null,null,null,null,null,null,null,null,null,null,null,null,null,null,null,null,null,null,null,null,null,null,null,null,null,null,null,null,null,null,null,null,null,null,null,null,null,null,null,null,null,{"$f":"IF(BU341=\"\",\"\",IF(BK341=\"\",\"数量未入力\",IF(CE341=\"\",\"消費税区分未入力\",ROUNDDOWN(BK341*BU341,0))))","v":""}]
[null,null,null,null,null,null,null,null,null,null,null,null,null,null,null,null,null,null,null,null,null,null,null,null,null,null,null,null,null,null,null,null,null,null,null,null,null,null,null,null,null,null,null,null,null,null,null,null,null,null,null,null,null,null,null,null,null,null,null,null,null,null,null,null,null,null,null,null,null,null,null,null,null,null,null,null,null,null,null,null,null,null,null,null,null,null,null,null,null,null,null,null,""]
[null,null,null,null,null,null,null,null,null,null,null,null,null,null,null,null,null,null,null,null,null,null,null,null,null,null,null,null,null,null,null,null,null,null,null,null,null,null,null,null,null,null,null,null,null,null,null,null,null,null,null,null,null,null,null,null,null,null,null,null,null,null,null,null,null,null,null,null,null,null,null,null,null,null,null,null,null,null,null,null,null,null,null,null,null,null,null,null,null,null,null,null,""]
[null,null,null,null,null,null,null,null,null,null,null,null,null,null,null,null,null,null,null,null,null,null,null,null,null,null,null,null,null,null,null,null,null,null,null,null,null,null,null,null,null,null,null,null,null,null,null,null,null,null,null,null,null,null,null,null,null,null,null,null,null,null,null,null,null,null,null,null,null,null,null,null,null,null,null,null,null,null,null,null,null,null,null,null,null,null,null,null,null,null,null,null,""]
[null,null,null,null,null,null,null,null,null,null,null,null,null,null,null,null,null,null,null,null,null,null,null,null,null,null,null,null,null,null,null,null,null,null,null,null,null,null,null,null,null,null,null,null,null,null,null,null,null,null,null,null,null,null,null,null,null,null,null,null,null,null,null,null,null,null,null,null,null,null,null,null,null,null,null,null,null,null,null,null,null,null,null,null,null,null,null,null,null,null,null,null,""]
[null,null,null,null,null,null,null,null,null,null,null,null,null,null,null,null,null,null,null,null,null,null,null,null,null,null,null,null,null,null,null,null,null,null,null,null,null,null,null,null,null,null,null,null,null,null,null,null,null,null,null,null,null,null,null,null,null,null,null,null,null,null,null,null,null,null,null,null,null,null,null,null,null,null,null,null,null,null,null,null,null,null,null,null,null,null,null,null,null,null,null,null,""]
[null,null,null,null,null,null,null,null,null,null,null,null,null,null,null,null,null,null,null,null,null,null,null,null,null,null,null,null,null,null,null,null,null,null,null,null,null,null,null,null,null,null,null,null,null,null,null,null,null,null,null,null,null,null,null,null,null,null,null,null,null,null,null,null,null,null,null,null,null,null,null,null,null,null,null,null,null,null,null,null,null,null,null,null,null,null,null,null,null,null,null,null,""]
[null,null,null,null,null,null,null,null,null,null,null,null,null,null,null,null,null,null,null,null,null,null,null,null,null,null,null,null,null,null,null,null,null,null,null,null,null,null,null,null,null,null,null,null,null,null,null,null,null,null,null,null,null,null,null,null,null,null,null,null,null,null,null,null,null,null,null,null,null,null,null,null,null,null,null,null,null,null,null,null,null,null,null,null,null,null,null,null,null,null,null,null,""]
[null,null,null,null,null,null,null,null,null,null,null,null,null,null,null,null,null,null,null,null,null,null,null,null,null,null,null,null,null,null,null,null,null,null,null,null,null,null,null,null,null,null,null,null,null,null,null,null,null,null,null,null,null,null,null,null,null,null,null,null,null,null,null,null,null,null,null,null,null,null,null,null,null,null,null,null,null,null,null,null,null,null,null,null,null,null,null,null,null,null,null,null,""]
[null,null,null,null,null,null,null,null,null,null,null,null,null,null,null,null,null,null,null,null,null,null,null,null,null,null,null,null,null,null,null,null,null,null,null,null,null,null,null,null,null,null,null,null,null,null,null,null,null,null,null,null,null,null,null,null,null,null,null,null,null,null,null,null,null,null,null,null,null,null,null,null,null,null,null,null,null,null,null,null,null,null,null,null,null,null,null,null,null,null,null,null,""]
[null,null,null,null,null,null,null,null,null,null,null,null,null,null,null,null,null,null,null,null,null,null,null,null,null,null,null,null,null,null,null,null,null,null,null,null,null,null,null,null,null,null,null,null,null,null,null,null,null,null,null,null,null,null,null,null,null,null,null,null,null,null,null,null,null,null,null,null,null,null,null,null,null,null,null,null,null,null,null,null,null,null,null,null,null,null,null,null,null,null,null,null,""]
[null,null,null,null,null,null,null,null,null,null,null,null,null,null,null,null,null,null,null,null,null,null,null,null,null,null,null,null,null,null,null,null,null,null,null,null,null,null,null,null,null,null,null,null,null,null,null,null,null,null,null,null,null,null,null,null,null,null,null,null,null,null,null,null,null,null,null,null,null,null,null,null,null,null,null,null,null,null,null,null,null,null,null,null,null,null,null,null,null,null,null,null,""]
[null,null,null,null,null,null,null,null,null,null,null,null,null,null,null,null,null,null,null,null,null,null,null,null,null,null,null,null,null,null,null,null,null,null,null,null,null,null,null,null,null,null,null,null,null,null,null,null,null,null,null,null,null,null,null,null,null,null,null,null,null,null,null,null,null,null,null,null,null,null,null,null,null,null,null,null,null,null,null,null,null,null,null,null,null,null,null,null,null,null,null,null,""]
[null,null,null,null,null,null,null,null,null,null,null,null,null,null,null,null,null,null,null,null,null,null,null,null,null,null,null,null,null,null,null,null,null,null,null,null,null,null,null,null,null,null,null,null,null,null,null,null,null,null,null,null,null,null,null,null,null,null,null,null,null,null,null,null,null,null,null,null,null,null,null,null,null,null,null,null,null,null,null,null,null,null,null,null,null,null,null,null,null,null,null,null,""]
[null,null,null,null,null,null,null,null,null,null,null,null,null,null,null,null,null,null,null,null,null,null,null,null,null,null,null,null,null,null,null,null,null,null,null,null,null,null,null,null,null,null,null,null,null,null,null,null,null,null,null,null,null,null,null,null,null,null,null,null,null,null,null,null,null,null,null,null,null,null,null,null,null,null,null,null,null,null,null,null,null,null,null,null,null,null,null,null,null,null,null,null,""]
[null,null,null,null,null,null,null,null,null,null,null,null,null,null,null,null,null,null,null,null,null,null,null,null,null,null,null,null,null,null,null,null,null,null,null,null,null,null,null,null,null,null,null,null,null,null,null,null,null,null,null,null,null,null,null,null,null,null,null,null,null,null,null,null,null,null,null,null,null,null,null,null,null,null,null,null,null,null,null,null,null,null,null,null,null,null,null,null,null,null,null,null,""]
[null,null,null,null,null,null,null,null,null,null,null,null,null,null,null,null,null,null,null,null,null,null,null,null,null,null,null,null,null,null,null,null,null,null,null,null,null,null,null,null,null,null,null,null,null,null,null,null,null,null,null,null,null,null,null,null,null,null,null,null,null,null,null,null,null,null,null,null,null,null,null,null,null,null,null,null,null,null,null,null,null,null,null,null,null,null,null,null,null,null,null,null,""]
[null,null,null,null,null,null,null,null,null,null,null,null,null,null,null,null,null,null,null,null,null,null,null,null,null,null,null,null,null,null,null,null,null,null,null,null,null,null,null,null,null,null,null,null,null,null,null,null,null,null,null,null,null,null,null,null,null,null,null,null,null,null,null,null,null,null,null,null,null,null,null,null,null,null,null,null,null,null,null,null,null,null,null,null,null,null,null,null,null,null,null,null,""]
[null,null,null,null,null,null,null,null,null,null,null,null,null,null,null,null,null,null,null,null,null,null,null,null,null,null,null,null,null,null,null,null,null,null,null,null,null,null,null,null,null,null,null,null,null,null,null,null,null,null,null,null,null,null,null,null,null,null,null,null,null,null,null,null,null,null,null,null,null,null,null,null,null,null,null,null,null,null,null,null,null,null,null,null,null,null,null,null,null,null,null,null,""]
[null,null,null,null,null,null,null,null,null,null,null,null,null,null,null,null,null,null,null,null,null,null,null,null,null,null,null,null,null,null,null,null,null,null,null,null,null,null,null,null,null,null,null,null,null,null,null,null,null,null,null,null,null,null,null,null,null,null,null,null,null,null,null,null,null,null,null,null,null,null,null,null,null,null,null,null,null,null,null,null,null,null,null,null,null,null,null,null,null,null,null,null,""]
[null,null,null,null,null,null,null,null,null,null,null,null,null,null,null,null,null,null,null,null,null,null,null,null,null,null,null,null,null,null,null,null,null,null,null,null,null,null,null,null,null,null,null,null,null,null,null,null,null,null,null,null,null,null,null,null,null,null,null,null,null,null,null,null,null,null,null,null,null,null,null,null,null,null,null,null,null,null,null,null,null,null,null,null,null,null,null,null,null,null,null,null,""]
[null,null,null,null,null,null,null,null,null,null,null,null,null,null,null,null,null,null,null,null,null,null,null,null,null,null,null,null,null,null,null,null,null,null,null,null,null,null,null,null,null,null,null,null,null,null,null,null,null,null,null,null,null,null,null,null,null,null,null,null,null,null,null,null,null,null,null,null,null,null,null,null,null,null,null,null,null,null,null,null,null,null,null,null,null,null,null,null,null,null,null,null,""]
[null,null,null,null,null,null,null,null,null,null,null,null,null,null,null,null,null,null,null,null,null,null,null,null,null,null,null,null,null,null,null,null,null,null,null,null,null,null,null,null,null,null,null,null,null,null,null,null,null,null,null,null,null,null,null,null,null,null,null,null,null,null,null,null,null,null,null,null,null,null,null,null,null,null,null,null,null,null,null,null,null,null,null,null,null,null,null,null,null,null,null,null,""]
[null,null,null,null,null,null,null,null,null,null,null,null,null,null,null,null,null,null,null,null,null,null,null,null,null,null,null,null,null,null,null,null,null,null,null,null,null,null,null,null,null,null,null,null,null,null,null,null,null,null,null,null,null,null,null,null,null,null,null,null,null,null,null,null,null,null,null,null,null,null,null,null,null,null,null,null,null,null,null,null,null,null,null,null,null,null,null,null,null,null,null,null,""]
[null,null,null,null,null,null,null,null,null,null,null,null,null,null,null,null,null,null,null,null,null,null,null,null,null,null,null,null,null,null,null,null,null,null,null,null,null,null,null,null,null,null,null,null,null,null,null,null,null,null,null,null,null,null,null,null,null,null,null,null,null,null,null,null,null,null,null,null,null,null,null,null,null,null,null,null,null,null,null,null,null,null,null,null,null,null,null,null,null,null,null,null,""]
[null,null,null,null,null,null,null,null,null,null,null,null,null,null,null,null,null,null,null,null,null,null,null,null,null,null,null,null,null,null,null,null,null,null,null,null,null,null,null,null,null,null,null,null,null,null,null,null,null,null,null,null,null,null,null,null,null,null,null,null,null,null,null,null,null,null,null,null,null,null,null,null,null,null,null,null,null,null,null,null,null,null,null,null,null,null,null,null,null,null,null,null,""]
[null,null,null,null,null,null,"頁計",null,null,null,null,null,null,null,null,null,null,null,null,null,null,null,null,null,null,null,null,null,null,null,null,null,null,null,null,null,null,null,null,null,null,null,null,null,null,null,null,null,null,null,null,null,null,null,null,null,null,null,null,null,null,null,null,null,null,null,null,null,null,null,null,null,null,null,null,null,null,null,null,null,null,null,null,null,null,null,null,null,null,null,null,null,{"$f":"SUMIF($CE$341:$CN$366,\"<>*税端数*\",$CO$341:$DJ$366)","v":0}]
[]
[]
[]
[null,null,null,null,null,null,null,null,null,null,null,null,null,null,null,null,null,null,null,null,null,null,null,null,null,null,null,null,null,null,null,null,null,null,null,null,null,null,null,null,null,null,null,null,null,null,null,null,null,null,null,null,null,null,5,null,null,null,"/",null,null,null,{"$f":"SUM(1,IF(COUNTIF(内訳明細2,\"<>\")>0,1),IF(COUNTIF(内訳明細3,\"<>\")>0,1),IF(COUNTIF(内訳明細4,\"<>\")>0,1),IF(COUNTIF(内訳明細5,\"<>\")>0,1))","v":1},null,null,null,null,null,null,null,null,null,null,null,null,null,null,null,null,null,null,null,null,null,null,null,null,null,null,null,null,null,{"$f":"$CO$123","v":"埼玉建興(株)Ver.1.2"}]

{"sheet":"基本情報入力","index":1,"n_rows":49,"n_cols":12,"rows_kept":49,"cut":false,"hidden":false,"merged":[[22,1,22,11],[23,1,23,11],[14,1,14,11],[20,3,20,8],[39,3,39,5],[0,0,0,11],[2,9,2,11],[16,3,16,8],[18,3,18,8],[26,3,26,8],[11,3,11,8],[8,3,8,8],[4,1,4,11],[5,1,5,11],[9,1,9,11],[12,1,12,11],[13,1,13,11],[21,1,21,11],[49,1,49,11],[24,1,24,11],[47,1,47,11],[48,1,48,11],[27,1,27,11],[28,1,28,11],[36,3,36,5],[37,1,37,11],[42,3,42,5],[43,1,43,11],[44,1,44,11],[32,1,32,11],[33,1,33,11],[34,1,34,11],[40,1,40,11],[45,1,45,11]]}
["基 本 情 報 入 力"]
[]
[null,null,null,null,null,null,null,null,null,"埼玉建興(株)Ver.1.2"]
[]
[null,"以下の項目をすべて入力してください。"]
[null,"（登録番号は消費税課税事業者の場合のみ入力必須です。）"]
[]
[]
[null,"取引先コード（6桁）"]
[null,"注文書・注文請書に記載の番号を入力してください。"]
[]
[null,"登録番号（13桁）","T"]
[null,"消費税課税事業者の場合は必ず入力してください。"]
[null,"頭のTを除いた13桁を入力してください（ハイフン不要）。"]
[null,"制度に関する詳細は、国税庁のホームページをご参照ください。"]
[]
[null,"住所",null,null,null,null,null,null,null,null,"請求書への表示","有"]
[null,null,null,"1行目"]
[null,"会社名（氏名）",null,null,null,null,null,null,null,null,"請求書への表示","有"]
[null,null,null,"2行目"]
[]
[null,"法人格は略称を使用しないで入力してください。"]
[null,"＜例＞　(株)埼玉建設の場合　→　株式会社　埼玉建設"]
[null,"なお、請求書への表示を「無」にした場合でも、"]
[null,"2枚目以降にはこちらに入力した内容が表示されます。"]
[]
[null,"会社名（氏名）ヨミガナ"]
[null,"法人格を除いた全角カタカナで入力してください。"]
[null,"＜例＞　(株)埼玉建設の場合　→　サイタマケンセツ"]
[]
[null,"電話番号（TEL)",null,null,"-",null,"-",null,null,null,"請求書への表示","有"]
[]
[null,"●以下の３項目は現場作業所に関するご請求の場合には入力をお願いいたします。"]
[null,"ご不明な点は現場作業所長または担当者までお問い合わせください。"]
[null,"（経理部ではお答えできませんのでご了承ください。）"]
[]
[null,"工事番号（7桁）"]
[null,"注文書の「工事件名」欄に記載の7桁番号を入力してください（ハイフン不要）。"]
[]
[null,"注文番号（4～5桁）"]
[null,"注文書の「注文番号」欄に記載の番号（4～5桁）を入力してください。"]
[]
[null,"注文金額（税抜）"]
[null,"注文書の「注文金額」欄に記載の金額（税抜）を入力してください。"]
[null,"単価取極により「注文金額」欄に「別途記載」と記載されている場合は空欄にしてください。"]
[null,"注文書の確認が取れなかった場合は空欄にしてください。"]
[]
[null,"上記項目の入力が終わりましたら「請求書」シートに移動し、"]
[null,"色付きの項目のみを入力して請求書の出力を行ってください。"]

{"sheet":"消費税マスタ","index":2,"n_rows":24,"n_cols":5,"rows_kept":24,"cut":false,"hidden":false,"merged":[[13,1,13,8],[2,1,2,2],[0,0,0,8],[3,1,3,8],[4,1,4,8],[10,1,10,8],[9,1,9,2],[11,1,11,8],[12,1,12,8],[5,1,5,8],[6,1,6,8],[7,1,7,8]]}
["消 費 税 マ ス タ"]
[]
[null,"消費税端数処理",null,"無"]
[null,"原則、「無」から変更しないでください。"]
[null,"「有」にすることで請求書シートの消費税区分で「税端数」を選択できるようになります。"]
[null,"当該行の「品目規格又は作業内容」には「消費税額端数調整」と入力してください。"]
[null,"「税端数」で入力した金額は内訳明細の頁計・総合計には集計されず、"]
[null,"「消費税率別内訳」の消費税額に直接加減算されます。"]
[]
[null,"※注意事項"]
[null,"2023年（令和5年）10月末締分請求書より、適格請求書等保存方式が適用され、"]
[null,"内訳明細1行毎の消費税計算は税法上認められなくなります。"]
[]
[]
[]
[]
[null,null,"無",null,"有"]
[null,null,"１０％",null,"１０％"]
[null,null,"８％(軽)",null,"８％(軽)"]
[null,null,"対象外",null,"対象外"]
[]
[null,null,null,null,"税端数１０％"]
[null,null,null,null,"税端数８％(軽)"]
[null,null,null,null,"税端数８％"]

{"sheet":"請求書(手書き用)","index":3,"n_rows":185,"n_cols":104,"rows_kept":185,"cut":false,"hidden":false,"merged":[[94,96,97,101],[94,102,97,107],[94,108,97,113],[100,92,103,95],[100,96,103,101],[100,102,103,107],[100,108,103,113],[104,92,107,95],[104,96,107,101],[104,102,107,107],[104,108,107,113],[74,102,77,107],[74,108,77,113],[88,92,90,95],[88,96,90,101],[88,102,90,107],[88,108,90,113],[91,92,93,95],[91,96,93,101],[91,102,93,107],[91,108,93,113],[78,58,81,63],[78,64,81,69],[78,70,81,75],[82,54,85,57],[82,58,85,63],[82,64,85,69],[82,70,85,75],[74,92,77,95],[74,96,77,101],[2,5,4,7],[2,43,5,67],[6,81,9,95],[6,96,9,98],[6,99,9,101],[6,102,9,104],[8,6,12,33],[8,34,12,40],[10,96,13,113],[6,105,9,107],[6,108,9,110],[6,111,9,113],[7,43,11,50],[7,51,11,53],[7,54,11,57],[7,58,11,60],[7,61,11,64],[7,65,11,67],[10,81,13,95],[14,9,16,40],[16,55,18,62],[16,66,18,111],[17,6,20,23],[17,24,20,51],[20,55,24,62],[21,6,24,23],[21,24,24,51],[20,66,22,101],[20,103,29,113],[23,66,25,101],[26,66,28,101],[25,6,29,23],[25,24,29,51],[26,55,28,62],[48,62,48,71],[48,72,48,81],[48,82,48,91],[36,6,39,23],[36,24,39,41],[36,54,39,65],[36,66,39,113],[42,43,45,67],[47,6,47,15],[47,16,47,51],[47,52,47,61],[47,62,47,71],[47,72,47,81],[47,82,47,91],[47,92,47,113],[51,62,51,71],[51,72,51,81],[51,82,51,91],[32,6,35,23],[32,24,35,41],[32,54,35,65],[32,66,35,113],[49,92,49,113],[50,6,50,15],[50,16,50,51],[50,52,50,61],[50,62,50,71],[50,72,50,81],[50,82,50,91],[50,92,50,113],[49,6,49,15],[49,16,49,51],[49,52,49,61],[49,62,49,71],[49,72,49,81],[49,82,49,91],[48,6,48,15],[48,16,48,51],[48,52,48,61],[63,42,65,59],[63,60,65,77],[63,78,65,95],[63,96,65,113],[71,5,73,22],[71,42,73,70],[74,6,77,17],[48,92,48,113],[57,6,59,23],[57,24,59,41],[57,42,59,59],[57,60,59,77],[57,78,59,95],[57,96,59,113],[51,92,51,113],[52,6,52,91],[52,92,52,113],[53,6,53,91],[53,92,53,113],[54,6,56,34],[54,92,56,113],[51,6,51,15],[51,16,51,51],[51,52,51,61],[122,62,124,65],[122,92,124,115],[74,80,77,91],[74,54,77,57],[74,58,77,63],[74,64,77,69],[74,70,77,75],[60,6,62,23],[60,24,62,41],[60,42,62,59],[60,60,62,77],[60,78,62,95],[60,96,62,113],[78,6,81,17],[78,18,81,37],[78,42,81,53],[66,6,68,23],[66,24,68,41],[66,42,68,59],[66,60,68,77],[66,78,68,95],[66,96,68,113],[63,6,65,23],[63,24,65,41],[71,80,73,109],[78,54,81,57],[128,5,130,7],[128,43,131,67],[82,6,85,17],[82,18,85,37],[82,42,85,53],[100,62,103,91],[104,62,107,91],[108,92,110,101],[113,6,120,9],[113,30,120,33],[88,6,107,9],[88,10,91,25],[88,26,91,37],[88,38,91,59],[88,62,90,91],[91,62,93,91],[94,62,97,91],[94,92,97,95],[74,18,77,37],[74,42,77,53],[122,54,124,57],[122,58,124,61],[154,6,154,15],[154,16,154,51],[154,52,154,61],[154,62,154,71],[154,72,154,81],[154,82,154,91],[154,92,154,113],[113,52,120,55],[113,102,120,105],[148,43,151,67],[153,6,153,15],[153,16,153,51],[153,52,153,61],[153,62,153,71],[153,72,153,81],[134,6,138,32],[134,33,138,39],[136,81,139,95],[153,82,153,91],[153,92,153,113],[136,96,139,113],[141,6,144,17],[141,18,144,51],[141,54,144,67],[141,68,144,113],[132,111,135,113],[133,43,137,50],[133,51,137,53],[133,54,137,57],[133,58,137,60],[133,61,137,64],[133,65,137,67],[132,81,135,95],[132,96,135,98],[132,99,135,101],[132,102,135,104],[132,105,135,107],[132,108,135,110],[157,92,157,113],[158,6,158,15],[158,16,158,51],[158,52,158,61],[158,62,158,71],[158,72,158,81],[158,82,158,91],[158,92,158,113],[157,6,157,15],[157,16,157,51],[157,52,157,61],[157,62,157,71],[157,72,157,81],[157,82,157,91],[155,92,155,113],[156,6,156,15],[156,16,156,51],[156,52,156,61],[156,62,156,71],[156,72,156,81],[156,82,156,91],[156,92,156,113],[155,6,155,15],[155,16,155,51],[155,52,155,61],[155,62,155,71],[155,72,155,81],[155,82,155,91],[161,92,161,113],[162,6,162,15],[162,16,162,51],[162,52,162,61],[162,62,162,71],[162,72,162,81],[162,82,162,91],[162,92,162,113],[161,6,161,15],[161,16,161,51],[161,52,161,61],[161,62,161,71],[161,72,161,81],[161,82,161,91],[159,92,159,113],[160,6,160,15],[160,16,160,51],[160,52,160,61],[160,62,160,71],[160,72,160,81],[160,82,160,91],[160,92,160,113],[159,6,159,15],[159,16,159,51],[159,52,159,61],[159,62,159,71],[159,72,159,81],[159,82,159,91],[165,92,165,113],[166,6,166,15],[166,16,166,51],[166,52,166,61],[166,62,166,71],[166,72,166,81],[166,82,166,91],[166,92,166,113],[165,6,165,15],[165,16,165,51],[165,52,165,61],[165,62,165,71],[165,72,165,81],[165,82,165,91],[163,92,163,113],[164,6,164,15],[164,16,164,51],[164,52,164,61],[164,62,164,71],[164,72,164,81],[164,82,164,91],[164,92,164,113],[163,6,163,15],[163,16,163,51],[163,52,163,61],[163,62,163,71],[163,72,163,81],[163,82,163,91],[169,92,169,113],[170,6,170,15],[170,16,170,51],[170,52,170,61],[170,62,170,71],[170,72,170,81],[170,82,170,91],[170,92,170,113],[169,6,169,15],[169,16,169,51],[169,52,169,61],[169,62,169,71],[169,72,169,81],[169,82,169,91],[167,92,167,113],[168,6,168,15],[168,16,168,51],[168,52,168,61],[168,62,168,71],[168,72,168,81],[168,82,168,91],[168,92,168,113],[167,6,167,15],[167,16,167,51],[167,52,167,61],[167,62,167,71],[167,72,167,81],[167,82,167,91],[173,92,173,113],[174,6,174,15],[174,16,174,51],[174,52,174,61],[174,62,174,71],[174,72,174,81],[174,82,174,91],[174,92,174,113],[173,6,173,15],[173,16,173,51],[173,52,173,61],[173,62,173,71],[173,72,173,81],[173,82,173,91],[171,92,171,113],[172,6,172,15],[172,16,172,51],[172,52,172,61],[172,62,172,71],[172,72,172,81],[172,82,172,91],[172,92,172,113],[171,6,171,15],[171,16,171,51],[171,52,171,61],[171,62,171,71],[171,72,171,81],[171,82,171,91],[177,92,177,113],[178,6,178,15],[178,16,178,51],[178,52,178,61],[178,62,178,71],[178,72,178,81],[178,82,178,91],[178,92,178,113],[177,6,177,15],[177,16,177,51],[177,52,177,61],[177,62,177,71],[177,72,177,81],[177,82,177,91],[175,92,175,113],[176,6,176,15],[176,16,176,51],[176,52,176,61],[176,62,176,71],[176,72,176,81],[176,82,176,91],[176,92,176,113],[175,6,175,15],[175,16,175,51],[175,52,175,61],[175,62,175,71],[175,72,175,81],[175,82,175,91],[179,92,179,113],[180,6,180,91],[180,92,180,113],[181,92,183,113],[184,54,186,57],[184,58,186,61],[184,62,186,65],[184,92,186,115],[179,6,179,15],[179,16,179,51],[179,52,179,61],[179,62,179,71],[179,72,179,81],[179,82,179,91]]}
[]
[]
[null,null,null,null,null,null,null,null,null,null,null,null,null,null,null,null,null,null,null,null,null,null,null,null,null,null,null,null,null,null,null,null,null,null,null,null,null,null,null,null,null,null,null,"請 求 書"]
[]
[]
[]
[null,null,null,null,null,null,null,null,null,null,null,null,null,null,null,null,null,null,null,null,null,null,null,null,null,null,null,null,null,null,null,null,null,null,null,null,null,null,null,null,null,null,null,null,null,null,null,null,null,null,null,null,null,null,null,null,null,null,null,null,null,null,null,null,null,null,null,null,null,null,null,null,null,null,null,null,null,null,null,null,null,"取引先コード"]
[null,null,null,null,null,null,null,null,null,null,null,null,null,null,null,null,null,null,null,null,null,null,null,null,null,null,null,null,null,null,null,null,null,null,null,null,null,null,null,null,null,null,null,null,null,null,null,null,null,null,null,"年",null,null,null,null,null,null,"月",null,null,null,null,null,null,"日"]
[null,null,null,null,null,null,"埼玉建興株式会社",null,null,null,null,null,null,null,null,null,null,null,null,null,null,null,null,null,null,null,null,null,null,null,null,null,null,null,"御中"]
[]
[null,null,null,null,null,null,null,null,null,null,null,null,null,null,null,null,null,null,null,null,null,null,null,null,null,null,null,null,null,null,null,null,null,null,null,null,null,null,null,null,null,null,null,null,null,null,null,null,null,null,null,null,null,null,null,null,null,null,null,null,null,null,null,null,null,null,null,null,null,null,null,null,null,null,null,null,null,null,null,null,null,"登録番号"]
[]
[]
[]
[null,null,null,null,null,null,null,null,null,"下記のとおり御請求申し上げます。"]
[]
[null,null,null,null,null,null,null,null,null,null,null,null,null,null,null,null,null,null,null,null,null,null,null,null,null,null,null,null,null,null,null,null,null,null,null,null,null,null,null,null,null,null,null,null,null,null,null,null,null,null,null,null,null,null,null,"住所"]
[null,null,null,null,null,null,"当月請求額（税込）"]
[]
[]
[null,null,null,null,null,null,null,null,null,null,null,null,null,null,null,null,null,null,null,null,null,null,null,null,null,null,null,null,null,null,null,null,null,null,null,null,null,null,null,null,null,null,null,null,null,null,null,null,null,null,null,null,null,null,null,"会社名\n（氏名）",null,null,null,null,null,null,null,null,null,null,null,null,null,null,null,null,null,null,null,null,null,null,null,null,null,null,null,null,null,null,null,null,null,null,null,null,null,null,null,null,null,null,null,null,null,null,null,"印"]
[null,null,null,null,null,null,"相 殺 金 額（税込）"]
[]
[]
[]
[null,null,null,null,null,null,"当月請求額（税込）\n（相殺後）"]
[null,null,null,null,null,null,null,null,null,null,null,null,null,null,null,null,null,null,null,null,null,null,null,null,null,null,null,null,null,null,null,null,null,null,null,null,null,null,null,null,null,null,null,null,null,null,null,null,null,null,null,null,null,null,null,"TEL"]
[]
[]
[]
[]
[]
[null,null,null,null,null,null,"所長名\n（埼玉建興）",null,null,null,null,null,null,null,null,null,null,null,null,null,null,null,null,null,null,null,null,null,null,null,null,null,null,null,null,null,null,null,null,null,null,null,null,null,null,null,null,null,null,null,null,null,null,null,"工事件名"]
[]
[]
[]
[null,null,null,null,null,null,"注文番号",null,null,null,null,null,null,null,null,null,null,null,null,null,null,null,null,null,null,null,null,null,null,null,null,null,null,null,null,null,null,null,null,null,null,null,null,null,null,null,null,null,null,null,null,null,null,null,"品目及内容"]
[]
[]
[]
[]
[]
[null,null,null,null,null,null,null,null,null,null,null,null,null,null,null,null,null,null,null,null,null,null,null,null,null,null,null,null,null,null,null,null,null,null,null,null,null,null,null,null,null,null,null,"内訳明細"]
[]
[]
[]
[]
[null,null,null,null,null,null,"日付",null,null,null,null,null,null,null,null,null,"品目規格又は作業内容",null,null,null,null,null,null,null,null,null,null,null,null,null,null,null,null,null,null,null,null,null,null,null,null,null,null,null,null,null,null,null,null,null,null,null,"単位",null,null,null,null,null,null,null,null,null,"数量",null,null,null,null,null,null,null,null,null,"単価",null,null,null,null,null,null,null,null,null,"消費税区分",null,null,null,null,null,null,null,null,null,"税抜金額"]
[]
[]
[]
[]
[null,null,null,null,null,null,"頁計"]
[null,null,null,null,null,null,"総合計"]
[null,null,null,null,null,null,"消費税率別内訳"]
[]
[]
[null,null,null,null,null,null,"消費税区分",null,null,null,null,null,null,null,null,null,null,null,null,null,null,null,null,null,"１０％",null,null,null,null,null,null,null,null,null,null,null,null,null,null,null,null,null,"８％（軽）",null,null,null,null,null,null,null,null,null,null,null,null,null,null,null,null,null,"８％",null,null,null,null,null,null,null,null,null,null,null,null,null,null,null,null,null,"対象外",null,null,null,null,null,null,null,null,null,null,null,null,null,null,null,null,null,"総合計"]
[]
[]
[null,null,null,null,null,null,"税抜金額",null,null,null,null,null,null,null,null,null,null,null,null,100000000]
[]
[]
[null,null,null,null,null,null,"消費税額",null,null,null,null,null,null,null,null,null,null,null,null,10000000]
[]
[]
[null,null,null,null,null,null,"税込金額",null,null,null,null,null,null,null,null,null,null,null,null,110000000]
[]
[]
[]
[]
[null,null,null,null,null,"※担当者記入欄",null,null,null,null,null,null,null,null,null,null,null,null,null,null,null,null,null,null,null,null,null,null,null,null,null,null,null,null,null,null,null,null,null,null,null,null,"注文金額（税抜）",null,null,null,null,null,null,null,null,null,null,null,null,null,null,null,null,null,null,null,null,null,null,null,null,null,null,null,null,null,null,null,null,null,null,null,null,null,"既出来高金額（税抜）"]
[]
[]
[null,null,null,null,null,null,"部門コード\n工事番号",null,null,null,null,null,null,null,null,null,null,null,null,null,null,null,null,null,null,null,null,null,null,null,null,null,null,null,null,null,null,null,null,null,null,null,"当初金額",null,null,null,null,null,null,null,null,null,null,null,null,null,null,null,null,null,null,null,null,null,null,null,null,null,null,null,null,null,null,null,null,null,null,null,null,null,"請求済額"]
[]
[]
[]
[null,null,null,null,null,null,"注文番号",null,null,null,null,null,null,null,null,null,null,null,null,null,null,null,null,null,null,null,null,null,null,null,null,null,null,null,null,null,null,null,null,null,null,null,"増減金額"]
[]
[]
[]
[null,null,null,null,null,null,"決裁番号",null,null,null,null,null,null,null,null,null,null,null,null,null,null,null,null,null,null,null,null,null,null,null,null,null,null,null,null,null,null,null,null,null,null,null,"合計"]
[]
[]
[]
[]
[]
[null,null,null,null,null,null,"工種及要素 内訳",null,null,null,"経理科目コード",null,null,null,null,null,null,null,null,null,null,null,null,null,null,null,"工種コード",null,null,null,null,null,null,null,null,null,null,null,"税抜金額",null,null,null,null,null,null,null,null,null,null,null,null,null,null,null,null,null,null,null,null,null,null,null,"当月請求額（税込）"]
[]
[]
[null,null,null,null,null,null,null,null,null,null,null,null,null,null,null,null,null,null,null,null,null,null,null,null,null,null,null,null,null,null,null,null,null,null,null,null,null,null,null,null,null,null,null,null,null,null,null,null,null,null,null,null,null,null,null,null,null,null,null,null,null,null,"相 殺 金 額（税込）"]
[]
[]
[null,null,null,null,null,null,null,null,null,null,null,null,null,null,null,null,null,null,null,null,null,null,null,null,null,null,null,null,null,null,null,null,null,null,null,null,null,null,null,null,null,null,null,null,null,null,null,null,null,null,null,null,null,null,null,null,null,null,null,null,null,null,"当月支払額（税込）"]
[]
[]
[]
[]
[]
[null,null,null,null,null,null,null,null,null,null,null,null,null,null,null,null,null,null,null,null,null,null,null,null,null,null,null,null,null,null,null,null,null,null,null,null,null,null,null,null,null,null,null,null,null,null,null,null,null,null,null,null,null,null,null,null,null,null,null,null,null,null,"当月出来高（税抜）\n（振替を除く額）"]
[]
[]
[]
[null,null,null,null,null,null,null,null,null,null,null,null,null,null,null,null,null,null,null,null,null,null,null,null,null,null,null,null,null,null,null,null,null,null,null,null,null,null,null,null,null,null,null,null,null,null,null,null,null,null,null,null,null,null,null,null,null,null,null,null,null,null,"取極残金（税抜）"]
[]
[]
[]
[null,null,null,null,null,null,null,null,null,null,null,null,null,null,null,null,null,null,null,null,null,null,null,null,null,null,null,null,null,null,null,null,null,null,null,null,null,null,null,null,null,null,null,null,null,null,null,null,null,null,null,null,null,null,null,null,null,null,null,null,null,null,null,null,null,null,null,null,null,null,null,null,null,null,null,null,null,null,null,null,null,null,null,null,null,null,null,null,null,null,null,null,"整理No."]
[]
[]
[]
[]
[null,null,null,null,null,null,"照合印",null,null,null,null,null,null,null,null,null,null,null,null,null,null,null,null,null,null,null,null,null,null,null,"決裁印",null,null,null,null,null,null,null,null,null,null,null,null,null,null,null,null,null,null,null,null,null,"確認印",null,null,null,null,null,null,null,null,null,null,null,null,null,null,null,null,null,null,null,null,null,null,null,null,null,null,null,null,null,null,null,null,null,null,null,null,null,null,null,null,null,null,null,null,null,null,null,null,null,"担当者印"]
[]
[]
[]
[]
[]
[]
[]
[]
[null,null,null,null,null,null,null,null,null,null,null,null,null,null,null,null,null,null,null,null,null,null,null,null,null,null,null,null,null,null,null,null,null,null,null,null,null,null,null,null,null,null,null,null,null,null,null,null,null,null,null,null,null,null,1,null,null,null,"/",null,null,null,null,null,null,null,null,null,null,null,null,null,null,null,null,null,null,null,null,null,null,null,null,null,null,null,null,null,null,null,null,null,{"$f":"基本情報入力!$J$3","v":"埼玉建興(株)Ver.1.2"}]
[]
[]
[]
[]
[]
[null,null,null,null,null,null,null,null,null,null,null,null,null,null,null,null,null,null,null,null,null,null,null,null,null,null,null,null,null,null,null,null,null,null,null,null,null,null,null,null,null,null,null,"請 求 書"]
[]
[]
[]
[null,null,null,null,null,null,null,null,null,null,null,null,null,null,null,null,null,null,null,null,null,null,null,null,null,null,null,null,null,null,null,null,null,null,null,null,null,null,null,null,null,null,null,null,null,null,null,null,null,null,null,null,null,null,null,null,null,null,null,null,null,null,null,null,null,null,null,null,null,null,null,null,null,null,null,null,null,null,null,null,null,"取引先コード"]
[null,null,null,null,null,null,null,null,null,null,null,null,null,null,null,null,null,null,null,null,null,null,null,null,null,null,null,null,null,null,null,null,null,null,null,null,null,null,null,null,null,null,null,null,null,null,null,null,null,null,null,"年",null,null,null,null,null,null,"月",null,null,null,null,null,null,"日"]
[null,null,null,null,null,null,"埼玉建興株式会社",null,null,null,null,null,null,null,null,null,null,null,null,null,null,null,null,null,null,null,null,null,null,null,null,null,null,"御中"]
[]
[null,null,null,null,null,null,null,null,null,null,null,null,null,null,null,null,null,null,null,null,null,null,null,null,null,null,null,null,null,null,null,null,null,null,null,null,null,null,null,null,null,null,null,null,null,null,null,null,null,null,null,null,null,null,null,null,null,null,null,null,null,null,null,null,null,null,null,null,null,null,null,null,null,null,null,null,null,null,null,null,null,"登録番号"]
[]
[]
[]
[]
[null,null,null,null,null,null,"工事件名",null,null,null,null,null,null,null,null,null,null,null,null,null,null,null,null,null,null,null,null,null,null,null,null,null,null,null,null,null,null,null,null,null,null,null,null,null,null,null,null,null,null,null,null,null,null,null,"会社名（氏名）"]
[]
[]
[]
[]
[]
[]
[null,null,null,null,null,null,null,null,null,null,null,null,null,null,null,null,null,null,null,null,null,null,null,null,null,null,null,null,null,null,null,null,null,null,null,null,null,null,null,null,null,null,null,"内訳明細"]
[]
[]
[]
[]
[null,null,null,null,null,null,"日付",null,null,null,null,null,null,null,null,null,"品目規格又は作業内容",null,null,null,null,null,null,null,null,null,null,null,null,null,null,null,null,null,null,null,null,null,null,null,null,null,null,null,null,null,null,null,null,null,null,null,"単位",null,null,null,null,null,null,null,null,null,"数量",null,null,null,null,null,null,null,null,null,"単価",null,null,null,null,null,null,null,null,null,"消費税区分",null,null,null,null,null,null,null,null,null,"税抜金額"]
[]
[]
[]
[]
[]
[]
[]
[]
[]
[]
[]
[]
[]
[]
[]
[]
[]
[]
[]
[]
[]
[]
[]
[]
[]
[]
[null,null,null,null,null,null,"頁計"]
[]
[]
[]
[null,null,null,null,null,null,null,null,null,null,null,null,null,null,null,null,null,null,null,null,null,null,null,null,null,null,null,null,null,null,null,null,null,null,null,null,null,null,null,null,null,null,null,null,null,null,null,null,null,null,null,null,null,null,null,null,null,null,"/",null,null,null,null,null,null,null,null,null,null,null,null,null,null,null,null,null,null,null,null,null,null,null,null,null,null,null,null,null,null,null,null,null,{"$f":"$CO$123","v":"埼玉建興(株)Ver.1.2"}]

{"sheet":"その他","index":4,"n_rows":38,"n_cols":4,"rows_kept":38,"cut":false,"hidden":false,"merged":[[17,2,17,10],[18,2,18,10],[1,2,1,10],[9,2,9,10],[3,2,3,10],[4,2,4,10],[5,2,5,10],[6,2,6,10],[11,2,11,10],[12,2,12,10],[13,2,13,10],[15,2,15,10],[16,2,16,10]]}
[]
[null,"Ｑ１.","入力欄に自社のExcel等からコピー＆ペーストをしようとしたらエラーがでてしまった。"]
[]
[null,"Ａ１.","ペースト先のセルが結合セルのため、そのままペーストはできません。"]
[null,null,"ペースト時に「形式を選択して貼付」→「数式」を選択してください。"]
[null,null,"コピー元が数式の場合は一度値に変換してから上記の処理を行ってください。"]
[null,null,"また、コピー＆ペースト作業は１列ずつ行ってください（複数列同時にはできません）。"]
[]
[]
[null,"Ｑ２.","ページ数を指定してPDFに変換することは可能か。"]
[]
[null,"Ａ２.","予め印刷プリンターに「Microsoft Print to PDF」を選択し、「請求書」シート内の"]
[null,null,"用紙右側にある「印刷」ボタンを押すことで変換可能です。"]
[null,null,"（「Microsoft Print to PDF」・・・Windows10以降のパソコンに標準搭載の仮想プリンター。）"]
[]
[null,null,"「Microsoft Print to PDF」を使用しない場合は以下の手順で変換可能です。"]
[null,null,"※パソコン環境によって細部が異なる可能性があります。予めご了承ください。"]
[null,null,"名前を付けて保存　→　ファイルの種類「PDF」を選択　→　「オプション」押下"]
[null,null,"→「ページ指定」開始ページと終了ページを指定し、「OK」押下　→　「保存」押下"]
[]
[null,null,"「名前を付けて保存」ウインドウ"]
[]
[]
[]
[]
[]
[]
[]
[]
[]
[]
[]
[]
[]
[]
[null,null,null,"↓"]
[]
[null,null,"「オプション」ウインドウ"]

{"sheet":"入力例→","index":5,"n_rows":0,"n_cols":0,"rows_kept":0,"cut":false,"hidden":false,"merged":[]}

{"sheet":"請求書(例)","index":6,"n_rows":185,"n_cols":112,"rows_kept":185,"cut":false,"hidden":false,"merged":[[100,102,103,107],[100,108,103,113],[104,92,107,95],[104,96,107,101],[104,102,107,107],[104,108,107,113],[71,80,73,109],[74,42,77,53],[74,54,77,57],[74,58,77,63],[74,64,77,69],[74,70,77,75],[74,80,77,91],[74,92,77,95],[74,96,77,101],[74,102,77,107],[74,108,77,113],[88,102,90,107],[88,108,90,113],[91,102,93,107],[91,108,93,113],[94,102,97,107],[94,108,97,113],[100,62,103,91],[179,92,179,113],[180,6,180,91],[180,92,180,113],[181,92,183,113],[184,54,186,57],[184,58,186,61],[184,62,186,65],[184,92,186,115],[179,6,179,15],[179,16,179,51],[179,52,179,61],[179,62,179,71],[179,72,179,81],[179,82,179,91],[175,92,175,113],[176,6,176,15],[176,16,176,51],[176,52,176,61],[176,62,176,71],[176,72,176,81],[176,82,176,91],[176,92,176,113],[175,6,175,15],[175,16,175,51],[175,52,175,61],[175,62,175,71],[175,72,175,81],[175,82,175,91],[177,92,177,113],[178,6,178,15],[178,16,178,51],[178,52,178,61],[178,62,178,71],[178,72,178,81],[178,82,178,91],[178,92,178,113],[177,6,177,15],[177,16,177,51],[177,52,177,61],[177,62,177,71],[177,72,177,81],[177,82,177,91],[171,92,171,113],[172,6,172,15],[172,16,172,51],[172,52,172,61],[172,62,172,71],[172,72,172,81],[172,82,172,91],[172,92,172,113],[171,6,171,15],[171,16,171,51],[171,52,171,61],[171,62,171,71],[171,72,171,81],[171,82,171,91],[173,92,173,113],[174,6,174,15],[174,16,174,51],[174,52,174,61],[174,62,174,71],[174,72,174,81],[174,82,174,91],[174,92,174,113],[173,6,173,15],[173,16,173,51],[173,52,173,61],[173,62,173,71],[173,72,173,81],[173,82,173,91],[167,92,167,113],[168,6,168,15],[168,16,168,51],[168,52,168,61],[168,62,168,71],[168,72,168,81],[168,82,168,91],[168,92,168,113],[167,6,167,15],[167,16,167,51],[167,52,167,61],[167,62,167,71],[167,72,167,81],[167,82,167,91],[169,92,169,113],[170,6,170,15],[170,16,170,51],[170,52,170,61],[170,62,170,71],[170,72,170,81],[170,82,170,91],[170,92,170,113],[169,6,169,15],[169,16,169,51],[169,52,169,61],[169,62,169,71],[169,72,169,81],[169,82,169,91],[163,92,163,113],[164,6,164,15],[164,16,164,51],[164,52,164,61],[164,62,164,71],[164,72,164,81],[164,82,164,91],[164,92,164,113],[163,6,163,15],[163,16,163,51],[163,52,163,61],[163,62,163,71],[163,72,163,81],[163,82,163,91],[165,92,165,113],[166,6,166,15],[166,16,166,51],[166,52,166,61],[166,62,166,71],[166,72,166,81],[166,82,166,91],[166,92,166,113],[165,6,165,15],[165,16,165,51],[165,52,165,61],[165,62,165,71],[165,72,165,81],[165,82,165,91],[159,92,159,113],[160,6,160,15],[160,16,160,51],[160,52,160,61],[160,62,160,71],[160,72,160,81],[160,82,160,91],[160,92,160,113],[159,6,159,15],[159,16,159,51],[159,52,159,61],[159,62,159,71],[159,72,159,81],[159,82,159,91],[161,92,161,113],[162,6,162,15],[162,16,162,51],[162,52,162,61],[162,62,162,71],[162,72,162,81],[162,82,162,91],[162,92,162,113],[161,6,161,15],[161,16,161,51],[161,52,161,61],[161,62,161,71],[161,72,161,81],[161,82,161,91],[155,92,155,113],[156,6,156,15],[156,16,156,51],[156,52,156,61],[156,62,156,71],[156,72,156,81],[156,82,156,91],[156,92,156,113],[155,6,155,15],[155,16,155,51],[155,52,155,61],[155,62,155,71],[155,72,155,81],[155,82,155,91],[157,92,157,113],[158,6,158,15],[158,16,158,51],[158,52,158,61],[158,62,158,71],[158,72,158,81],[158,82,158,91],[158,92,158,113],[157,6,157,15],[157,16,157,51],[157,52,157,61],[157,62,157,71],[157,72,157,81],[157,82,157,91],[134,33,138,39],[136,81,139,95],[153,82,153,91],[153,92,153,113],[136,96,139,113],[141,6,144,17],[141,18,144,51],[141,54,144,67],[141,68,144,113],[132,111,135,113],[133,43,137,50],[133,51,137,53],[133,54,137,57],[133,58,137,60],[133,61,137,64],[133,65,137,67],[132,81,135,95],[132,96,135,98],[132,99,135,101],[132,102,135,104],[132,105,135,107],[132,108,135,110],[88,92,90,95],[88,96,90,101],[91,92,93,95],[91,96,93,101],[94,92,97,95],[94,96,97,101],[100,92,103,95],[100,96,103,101],[154,6,154,15],[154,16,154,51],[154,52,154,61],[154,62,154,71],[154,72,154,81],[154,82,154,91],[154,92,154,113],[113,52,120,55],[113,102,120,105],[148,43,151,67],[153,6,153,15],[153,16,153,51],[153,52,153,61],[153,62,153,71],[153,72,153,81],[134,6,138,32],[78,6,81,17],[78,18,81,37],[82,6,85,17],[82,18,85,37],[88,6,107,9],[88,10,91,25],[88,26,91,37],[88,38,91,59],[88,62,90,91],[91,62,93,91],[94,62,97,91],[122,54,124,57],[122,58,124,61],[122,62,124,65],[122,92,124,115],[128,5,130,7],[128,43,131,67],[71,5,73,22],[71,42,73,71],[78,42,81,53],[78,54,81,57],[78,58,81,63],[78,64,81,69],[78,70,81,75],[82,42,85,53],[82,54,85,57],[82,58,85,63],[82,64,85,69],[82,70,85,75],[74,6,77,17],[74,18,77,37],[104,62,107,91],[108,92,110,101],[113,6,120,9],[113,30,120,33],[51,72,51,81],[51,82,51,91],[66,6,68,23],[66,24,68,41],[66,42,68,59],[66,60,68,77],[66,78,68,95],[66,96,68,113],[63,6,65,23],[63,24,65,41],[63,42,65,59],[63,60,65,77],[63,78,65,95],[63,96,65,113],[60,6,62,23],[60,24,62,41],[60,42,62,59],[60,60,62,77],[60,78,62,95],[60,96,62,113],[48,6,48,15],[48,16,48,51],[48,52,48,61],[48,62,48,71],[48,72,48,81],[48,82,48,91],[48,92,48,113],[57,6,59,23],[57,24,59,41],[57,42,59,59],[57,60,59,77],[57,78,59,95],[57,96,59,113],[51,92,51,113],[52,6,52,91],[52,92,52,113],[53,6,53,91],[53,92,53,113],[54,6,56,34],[54,92,56,113],[51,6,51,15],[51,16,51,51],[51,52,51,61],[51,62,51,71],[49,92,49,113],[50,6,50,15],[50,16,50,51],[50,52,50,61],[50,62,50,71],[50,72,50,81],[50,82,50,91],[50,92,50,113],[49,6,49,15],[49,16,49,51],[49,52,49,61],[49,62,49,71],[49,72,49,81],[49,82,49,91],[25,6,29,23],[25,24,29,51],[26,55,28,62],[32,6,35,23],[32,24,35,41],[32,54,35,65],[32,66,35,113],[20,103,29,113],[23,66,25,101],[26,66,28,101],[36,6,39,23],[36,24,39,41],[36,54,39,65],[36,66,39,113],[42,43,45,67],[47,6,47,15],[47,16,47,51],[47,52,47,61],[47,62,47,71],[47,72,47,81],[47,82,47,91],[47,92,47,113],[14,9,16,40],[16,55,18,62],[16,66,18,111],[17,6,20,23],[17,24,20,51],[20,55,24,62],[21,6,24,23],[21,24,24,51],[20,66,22,101],[2,5,4,7],[2,43,5,67],[6,81,9,95],[6,96,9,98],[6,99,9,101],[6,102,9,104],[8,6,12,33],[8,34,12,40],[10,96,13,113],[6,105,9,107],[6,108,9,110],[6,111,9,113],[7,43,11,50],[7,51,11,53],[7,54,11,57],[7,58,11,60],[7,61,11,64],[7,65,11,67],[10,81,13,95]]}
[]
[]
[null,null,null,null,null,"マ",null,null,null,null,null,null,null,null,null,null,null,null,null,null,null,null,null,null,null,null,null,null,null,null,null,null,null,null,null,null,null,null,null,null,null,null,null,"請 求 書"]
[]
[]
[]
[null,null,null,null,null,null,null,null,null,null,null,null,null,null,null,null,null,null,null,null,null,null,null,null,null,null,null,null,null,null,null,null,null,null,null,null,null,null,null,null,null,null,null,null,null,null,null,null,null,null,null,null,null,null,null,null,null,null,null,null,null,null,null,null,null,null,null,null,null,null,null,null,null,null,null,null,null,null,null,null,null,"取引先コード",null,null,null,null,null,null,null,null,null,null,null,null,null,null,"0",null,null,"0",null,null,"1",null,null,"7",null,null,"3",null,null,"2"]
[null,null,null,null,null,null,null,null,null,null,null,null,null,null,null,null,null,null,null,null,null,null,null,null,null,null,null,null,null,null,null,null,null,null,null,null,null,null,null,null,null,null,null,2024,null,null,null,null,null,null,null,"年",null,null,4,null,null,null,"月",null,null,30,null,null,null,"日"]
[null,null,null,null,null,null,"埼玉建興株式会社",null,null,null,null,null,null,null,null,null,null,null,null,null,null,null,null,null,null,null,null,null,null,null,null,null,null,null,"御中"]
[]
[null,null,null,null,null,null,null,null,null,null,null,null,null,null,null,null,null,null,null,null,null,null,null,null,null,null,null,null,null,null,null,null,null,null,null,null,null,null,null,null,null,null,null,null,null,null,null,null,null,null,null,null,null,null,null,null,null,null,null,null,null,null,null,null,null,null,null,null,null,null,null,null,null,null,null,null,null,null,null,null,null,"登録番号",null,null,null,null,null,null,null,null,null,null,null,null,null,null,"T1234567890123"]
[]
[]
[]
[null,null,null,null,null,null,null,null,null,"下記のとおり御請求申し上げます。"]
[]
[null,null,null,null,null,null,null,null,null,null,null,null,null,null,null,null,null,null,null,null,null,null,null,null,null,null,null,null,null,null,null,null,null,null,null,null,null,null,null,null,null,null,null,null,null,null,null,null,null,null,null,null,null,null,null,"住所",null,null,null,null,null,null,null,null,null,null,"○○県○○市1-2-3"]
[null,null,null,null,null,null,"当月請求額（税込）",null,null,null,null,null,null,null,null,null,null,null,null,null,null,null,null,null,11575400]
[]
[]
[null,null,null,null,null,null,null,null,null,null,null,null,null,null,null,null,null,null,null,null,null,null,null,null,null,null,null,null,null,null,null,null,null,null,null,null,null,null,null,null,null,null,null,null,null,null,null,null,null,null,null,null,null,null,null,"会社名\n（氏名）",null,null,null,null,null,null,null,null,null,null,"株式会社　埼玉建設",null,null,null,null,null,null,null,null,null,null,null,null,null,null,null,null,null,null,null,null,null,null,null,null,null,null,null,null,null,null,null,null,null,null,null,null,"印"]
[null,null,null,null,null,null,"相 殺 金 額（税込）",null,null,null,null,null,null,null,null,null,null,null,null,null,null,null,null,null,-110000]
[]
[]
[]
[null,null,null,null,null,null,"当月請求額（税込）\n（相殺後）",null,null,null,null,null,null,null,null,null,null,null,null,null,null,null,null,null,11465400]
[null,null,null,null,null,null,null,null,null,null,null,null,null,null,null,null,null,null,null,null,null,null,null,null,null,null,null,null,null,null,null,null,null,null,null,null,null,null,null,null,null,null,null,null,null,null,null,null,null,null,null,null,null,null,null,"TEL",null,null,null,null,null,null,null,null,null,null,"000 - 000 - 0000"]
[]
[]
[]
[]
[]
[null,null,null,null,null,null,"所長名\n（埼玉建興）",null,null,null,null,null,null,null,null,null,null,null,null,null,null,null,null,null,null,null,null,null,null,null,null,null,null,null,null,null,null,null,null,null,null,null,null,null,null,null,null,null,null,null,null,null,null,null,"工事件名",null,null,null,null,null,null,null,null,null,null,null,"□□マンション新築工事"]
[]
[]
[]
[null,null,null,null,null,null,"注文番号",null,null,null,null,null,null,null,null,null,null,null,null,null,null,null,null,null,12345,null,null,null,null,null,null,null,null,null,null,null,null,null,null,null,null,null,null,null,null,null,null,null,null,null,null,null,null,null,"品目及内容",null,null,null,null,null,null,null,null,null,null,null,"○○工事"]
[]
[]
[]
[]
[]
[null,null,null,null,null,null,null,null,null,null,null,null,null,null,null,null,null,null,null,null,null,null,null,null,null,null,null,null,null,null,null,null,null,null,null,null,null,null,null,null,null,null,null,"内訳明細"]
[]
[]
[]
[]
[null,null,null,null,null,null,"日付",null,null,null,null,null,null,null,null,null,"品目規格又は作業内容",null,null,null,null,null,null,null,null,null,null,null,null,null,null,null,null,null,null,null,null,null,null,null,null,null,null,null,null,null,null,null,null,null,null,null,"単位",null,null,null,null,null,null,null,null,null,"数量",null,null,null,null,null,null,null,null,null,"単価",null,null,null,null,null,null,null,null,null,"消費税区分",null,null,null,null,null,null,null,null,null,"税抜金額"]
[null,null,null,null,null,null,"2024-04-30",null,null,null,null,null,null,null,null,null,"○○工事",null,null,null,null,null,null,null,null,null,null,null,null,null,null,null,null,null,null,null,null,null,null,null,null,null,null,null,null,null,null,null,null,null,null,null,"式",null,null,null,null,null,null,null,null,null,1,null,null,null,null,null,null,null,null,null,10000000,null,null,null,null,null,null,null,null,null,"１０％",null,null,null,null,null,null,null,null,null,10000000]
[null,null,null,null,null,null,"2024-04-15",null,null,null,null,null,null,null,null,null,"飲料代",null,null,null,null,null,null,null,null,null,null,null,null,null,null,null,null,null,null,null,null,null,null,null,null,null,null,null,null,null,null,null,null,null,null,null,"個",null,null,null,null,null,null,null,null,null,50,null,null,null,null,null,null,null,null,null,100,null,null,null,null,null,null,null,null,null,"８％(軽)",null,null,null,null,null,null,null,null,null,5000]
[null,null,null,null,null,null,"2024-04-30",null,null,null,null,null,null,null,null,null,"△△（非課税対象）",null,null,null,null,null,null,null,null,null,null,null,null,null,null,null,null,null,null,null,null,null,null,null,null,null,null,null,null,null,null,null,null,null,null,null,"個",null,null,null,null,null,null,null,null,null,1,null,null,null,null,null,null,null,null,null,20000,null,null,null,null,null,null,null,null,null,"対象外",null,null,null,null,null,null,null,null,null,20000]
[]
[null,null,null,null,null,null,"頁計",null,null,null,null,null,null,null,null,null,null,null,null,null,null,null,null,null,null,null,null,null,null,null,null,null,null,null,null,null,null,null,null,null,null,null,null,null,null,null,null,null,null,null,null,null,null,null,null,null,null,null,null,null,null,null,null,null,null,null,null,null,null,null,null,null,null,null,null,null,null,null,null,null,null,null,null,null,null,null,null,null,null,null,null,null,10025000]
[null,null,null,null,null,null,"総合計",null,null,null,null,null,null,null,null,null,null,null,null,null,null,null,null,null,null,null,null,null,null,null,null,null,null,null,null,null,null,null,null,null,null,null,null,null,null,null,null,null,null,null,null,null,null,null,null,null,null,null,null,null,null,null,null,null,null,null,null,null,null,null,null,null,null,null,null,null,null,null,null,null,null,null,null,null,null,null,null,null,null,null,null,null,10525000]
[null,null,null,null,null,null,"消費税率別内訳",null,null,null,null,null,null,null,null,null,null,null,null,null,null,null,null,null,null,null,null,null,null,null,null,null,null,null,null,null,null,null,null,null,null,null,null,null,null,null,null,null,null,null,null,null,null,null,null,null,null,null,null,null,null,null,null,null,null,null,null,null,null,null,null,null,null,null,null,null,null,null,null,null,null,null,null,null,null,null,null,null,null,null,null,null,"※次頁有"]
[]
[]
[null,null,null,null,null,null,"消費税区分",null,null,null,null,null,null,null,null,null,null,null,null,null,null,null,null,null,"１０％",null,null,null,null,null,null,null,null,null,null,null,null,null,null,null,null,null,"８％（軽）",null,null,null,null,null,null,null,null,null,null,null,null,null,null,null,null,null,"８％",null,null,null,null,null,null,null,null,null,null,null,null,null,null,null,null,null,"対象外",null,null,null,null,null,null,null,null,null,null,null,null,null,null,null,null,null,"総合計"]
[]
[]
[null,null,null,null,null,null,"税抜金額",null,null,null,null,null,null,null,null,null,null,null,null,100000000,null,null,null,null,10500000,null,null,null,null,null,null,null,null,null,null,null,null,null,null,null,null,null,5000,null,null,null,null,null,null,null,null,null,null,null,null,null,null,null,null,null,null,null,null,null,null,null,null,null,null,null,null,null,null,null,null,null,null,null,20000,null,null,null,null,null,null,null,null,null,null,null,null,null,null,null,null,null,10525000]
[]
[]
[null,null,null,null,null,null,"消費税額",null,null,null,null,null,null,null,null,null,null,null,null,10000000,null,null,null,null,1050000,null,null,null,null,null,null,null,null,null,null,null,null,null,null,null,null,null,400,null,null,null,null,null,null,null,null,null,null,null,null,null,null,null,null,null,null,null,null,null,null,null,null,null,null,null,null,null,null,null,null,null,null,null,0,null,null,null,null,null,null,null,null,null,null,null,null,null,null,null,null,null,1050400]
[]
[]
[null,null,null,null,null,null,"税込金額",null,null,null,null,null,null,null,null,null,null,null,null,110000000,null,null,null,null,11550000,null,null,null,null,null,null,null,null,null,null,null,null,null,null,null,null,null,5400,null,null,null,null,null,null,null,null,null,null,null,null,null,null,null,null,null,null,null,null,null,null,null,null,null,null,null,null,null,null,null,null,null,null,null,20000,null,null,null,null,null,null,null,null,null,null,null,null,null,null,null,null,null,11575400]
[]
[]
[]
[]
[null,null,null,null,null,"※担当者記入欄",null,null,null,null,null,null,null,null,null,null,null,null,null,null,null,null,null,null,null,null,null,null,null,null,null,null,null,null,null,null,null,null,null,null,null,null,"注文金額（税抜）",null,null,null,null,null,null,null,null,null,null,null,null,null,null,null,null,null,null,null,null,null,null,null,null,null,null,null,null,null,null,null,null,null,null,null,null,null,"既出来高金額（税抜）"]
[]
[]
[null,null,null,null,null,null,"部門コード\n工事番号",null,null,null,null,null,null,null,null,null,null,null,24101,null,null,null,null,null,null,null,null,null,null,null,null,null,null,null,null,null,null,null,null,null,null,null,"当初金額",null,null,null,null,null,null,null,null,null,null,null,null,null,null,null,"20",null,null,null,null,null,"000",null,null,null,null,null,"000",null,null,null,null,null,null,null,null,null,"請求済額"]
[]
[]
[]
[null,null,null,null,null,null,"注文番号",null,null,null,null,null,null,null,null,null,null,null,12345,null,null,null,null,null,null,null,null,null,null,null,null,null,null,null,null,null,null,null,null,null,null,null,"増減金額"]
[]
[]
[]
[null,null,null,null,null,null,"決裁番号",null,null,null,null,null,null,null,null,null,null,null,null,null,null,null,null,null,null,null,null,null,null,null,null,null,null,null,null,null,null,null,null,null,null,null,"合計"]
[]
[]
[]
[]
[]
[null,null,null,null,null,null,"工種及要素 内訳",null,null,null,"経理科目コード",null,null,null,null,null,null,null,null,null,null,null,null,null,null,null,"工種コード",null,null,null,null,null,null,null,null,null,null,null,"税抜金額",null,null,null,null,null,null,null,null,null,null,null,null,null,null,null,null,null,null,null,null,null,null,null,"当月請求額（税込）",null,null,null,null,null,null,null,null,null,null,null,null,null,null,null,null,null,null,null,null,null,null,null,null,null,null,null,null,null,null,null,null,null,"11",null,null,null,null,null,"575",null,null,null,null,null,"400"]
[]
[]
[null,null,null,null,null,null,null,null,null,null,null,null,null,null,null,null,null,null,null,null,null,null,null,null,null,null,null,null,null,null,null,null,null,null,null,null,null,null,null,null,null,null,null,null,null,null,null,null,null,null,null,null,null,null,null,null,null,null,null,null,null,null,"相 殺 金 額（税込）",null,null,null,null,null,null,null,null,null,null,null,null,null,null,null,null,null,null,null,null,null,null,null,null,null,null,null,null,null,"▲",null,null,null,null,null,null,null,null,null,"110",null,null,null,null,null,"000"]
[]
[]
[null,null,null,null,null,null,null,null,null,null,null,null,null,null,null,null,null,null,null,null,null,null,null,null,null,null,null,null,null,null,null,null,null,null,null,null,null,null,null,null,null,null,null,null,null,null,null,null,null,null,null,null,null,null,null,null,null,null,null,null,null,null,"当月支払額（税込）",null,null,null,null,null,null,null,null,null,null,null,null,null,null,null,null,null,null,null,null,null,null,null,null,null,null,null,null,null,null,null,null,null,"11",null,null,null,null,null,"465",null,null,null,null,null,"400"]
[]
[]
[]
[]
[]
[null,null,null,null,null,null,null,null,null,null,null,null,null,null,null,null,null,null,null,null,null,null,null,null,null,null,null,null,null,null,null,null,null,null,null,null,null,null,null,null,null,null,null,null,null,null,null,null,null,null,null,null,null,null,null,null,null,null,null,null,null,null,"当月出来高（税抜）\n（振替を除く額）"]
[]
[]
[]
[null,null,null,null,null,null,null,null,null,null,null,null,null,null,null,null,null,null,null,null,null,null,null,null,null,null,null,null,null,null,null,null,null,null,null,null,null,null,null,null,null,null,null,null,null,null,null,null,null,null,null,null,null,null,null,null,null,null,null,null,null,null,"取極残金（税抜）"]
[]
[]
[]
[null,null,null,null,null,null,null,null,null,null,null,null,null,null,null,null,null,null,null,null,null,null,null,null,null,null,null,null,null,null,null,null,null,null,null,null,null,null,null,null,null,null,null,null,null,null,null,null,null,null,null,null,null,null,null,null,null,null,null,null,null,null,null,null,null,null,null,null,null,null,null,null,null,null,null,null,null,null,null,null,null,null,null,null,null,null,null,null,null,null,null,null,"整理No."]
[]
[]
[]
[]
[null,null,null,null,null,null,"照合印",null,null,null,null,null,null,null,null,null,null,null,null,null,null,null,null,null,null,null,null,null,null,null,"決裁印",null,null,null,null,null,null,null,null,null,null,null,null,null,null,null,null,null,null,null,null,null,"確認印",null,null,null,null,null,null,null,null,null,null,null,null,null,null,null,null,null,null,null,null,null,null,null,null,null,null,null,null,null,null,null,null,null,null,null,null,null,null,null,null,null,null,null,null,null,null,null,null,null,"担当者印"]
[]
[]
[]
[]
[]
[]
[]
[]
[null,null,null,null,null,null,null,null,null,null,null,null,null,null,null,null,null,null,null,null,null,null,null,null,null,null,null,null,null,null,null,null,null,null,null,null,null,null,null,null,null,null,null,null,null,null,null,null,null,null,null,null,null,null,1,null,null,null,"/",null,null,null,2,null,null,null,null,null,null,null,null,null,null,null,null,null,null,null,null,null,null,null,null,null,null,null,null,null,null,null,null,null,{"$f":"基本情報入力!$J$3","v":"埼玉建興(株)Ver.1.2"}]
[]
[]
[]
[]
[]
[null,null,null,null,null,"サ",null,null,null,null,null,null,null,null,null,null,null,null,null,null,null,null,null,null,null,null,null,null,null,null,null,null,null,null,null,null,null,null,null,null,null,null,null,"請 求 書 ②"]
[]
[]
[]
[null,null,null,null,null,null,null,null,null,null,null,null,null,null,null,null,null,null,null,null,null,null,null,null,null,null,null,null,null,null,null,null,null,null,null,null,null,null,null,null,null,null,null,null,null,null,null,null,null,null,null,null,null,null,null,null,null,null,null,null,null,null,null,null,null,null,null,null,null,null,null,null,null,null,null,null,null,null,null,null,null,"取引先コード",null,null,null,null,null,null,null,null,null,null,null,null,null,null,"0",null,null,"0",null,null,"1",null,null,"7",null,null,"3",null,null,"2"]
[null,null,null,null,null,null,null,null,null,null,null,null,null,null,null,null,null,null,null,null,null,null,null,null,null,null,null,null,null,null,null,null,null,null,null,null,null,null,null,null,null,null,null,2024,null,null,null,null,null,null,null,"年",null,null,4,null,null,null,"月",null,null,30,null,null,null,"日"]
[null,null,null,null,null,null,"埼玉建興株式会社",null,null,null,null,null,null,null,null,null,null,null,null,null,null,null,null,null,null,null,null,null,null,null,null,null,null,"御中"]
[]
[null,null,null,null,null,null,null,null,null,null,null,null,null,null,null,null,null,null,null,null,null,null,null,null,null,null,null,null,null,null,null,null,null,null,null,null,null,null,null,null,null,null,null,null,null,null,null,null,null,null,null,null,null,null,null,null,null,null,null,null,null,null,null,null,null,null,null,null,null,null,null,null,null,null,null,null,null,null,null,null,null,"登録番号",null,null,null,null,null,null,null,null,null,null,null,null,null,null,"T1234567890123"]
[]
[]
[]
[]
[null,null,null,null,null,null,"工事件名",null,null,null,null,null,null,null,null,null,null,null,"□□マンション新築工事",null,null,null,null,null,null,null,null,null,null,null,null,null,null,null,null,null,null,null,null,null,null,null,null,null,null,null,null,null,null,null,null,null,null,null,"会社名（氏名）",null,null,null,null,null,null,null,null,null,null,null,null,null,"株式会社　埼玉建設"]
[]
[]
[]
[]
[]
[]
[null,null,null,null,null,null,null,null,null,null,null,null,null,null,null,null,null,null,null,null,null,null,null,null,null,null,null,null,null,null,null,null,null,null,null,null,null,null,null,null,null,null,null,"内訳明細②"]
[]
[]
[]
[]
[null,null,null,null,null,null,"日付",null,null,null,null,null,null,null,null,null,"品目規格又は作業内容",null,null,null,null,null,null,null,null,null,null,null,null,null,null,null,null,null,null,null,null,null,null,null,null,null,null,null,null,null,null,null,null,null,null,null,"単位",null,null,null,null,null,null,null,null,null,"数量",null,null,null,null,null,null,null,null,null,"単価",null,null,null,null,null,null,null,null,null,"消費税区分",null,null,null,null,null,null,null,null,null,"税抜金額"]
[null,null,null,null,null,null,"2024-04-30",null,null,null,null,null,null,null,null,null,"○○工事",null,null,null,null,null,null,null,null,null,null,null,null,null,null,null,null,null,null,null,null,null,null,null,null,null,null,null,null,null,null,null,null,null,null,null,"式",null,null,null,null,null,null,null,null,null,1,null,null,null,null,null,null,null,null,null,500000,null,null,null,null,null,null,null,null,null,"１０％",null,null,null,null,null,null,null,null,null,500000]
[null,null,null,null,null,null,null,null,null,null,null,null,null,null,null,null,null,null,null,null,null,null,null,null,null,null,null,null,null,null,null,null,null,null,null,null,null,null,null,null,null,null,null,null,null,null,null,null,null,null,null,null,null,null,null,null,null,null,null,null,null,null,null,null,null,null,null,null,null,null,null,null,null,null,null,null,null,null,null,null,null,null,null,null,null,null,null,null,null,null,null,null,""]
[null,null,null,null,null,null,null,null,null,null,null,null,null,null,null,null,null,null,null,null,null,null,null,null,null,null,null,null,null,null,null,null,null,null,null,null,null,null,null,null,null,null,null,null,null,null,null,null,null,null,null,null,null,null,null,null,null,null,null,null,null,null,null,null,null,null,null,null,null,null,null,null,null,null,null,null,null,null,null,null,null,null,null,null,null,null,null,null,null,null,null,null,""]
[null,null,null,null,null,null,null,null,null,null,null,null,null,null,null,null,null,null,null,null,null,null,null,null,null,null,null,null,null,null,null,null,null,null,null,null,null,null,null,null,null,null,null,null,null,null,null,null,null,null,null,null,null,null,null,null,null,null,null,null,null,null,null,null,null,null,null,null,null,null,null,null,null,null,null,null,null,null,null,null,null,null,null,null,null,null,null,null,null,null,null,null,""]
[null,null,null,null,null,null,null,null,null,null,null,null,null,null,null,null,null,null,null,null,null,null,null,null,null,null,null,null,null,null,null,null,null,null,null,null,null,null,null,null,null,null,null,null,null,null,null,null,null,null,null,null,null,null,null,null,null,null,null,null,null,null,null,null,null,null,null,null,null,null,null,null,null,null,null,null,null,null,null,null,null,null,null,null,null,null,null,null,null,null,null,null,""]
[null,null,null,null,null,null,null,null,null,null,null,null,null,null,null,null,null,null,null,null,null,null,null,null,null,null,null,null,null,null,null,null,null,null,null,null,null,null,null,null,null,null,null,null,null,null,null,null,null,null,null,null,null,null,null,null,null,null,null,null,null,null,null,null,null,null,null,null,null,null,null,null,null,null,null,null,null,null,null,null,null,null,null,null,null,null,null,null,null,null,null,null,""]
[null,null,null,null,null,null,null,null,null,null,null,null,null,null,null,null,null,null,null,null,null,null,null,null,null,null,null,null,null,null,null,null,null,null,null,null,null,null,null,null,null,null,null,null,null,null,null,null,null,null,null,null,null,null,null,null,null,null,null,null,null,null,null,null,null,null,null,null,null,null,null,null,null,null,null,null,null,null,null,null,null,null,null,null,null,null,null,null,null,null,null,null,""]
[null,null,null,null,null,null,null,null,null,null,null,null,null,null,null,null,null,null,null,null,null,null,null,null,null,null,null,null,null,null,null,null,null,null,null,null,null,null,null,null,null,null,null,null,null,null,null,null,null,null,null,null,null,null,null,null,null,null,null,null,null,null,null,null,null,null,null,null,null,null,null,null,null,null,null,null,null,null,null,null,null,null,null,null,null,null,null,null,null,null,null,null,""]
[null,null,null,null,null,null,null,null,null,null,null,null,null,null,null,null,null,null,null,null,null,null,null,null,null,null,null,null,null,null,null,null,null,null,null,null,null,null,null,null,null,null,null,null,null,null,null,null,null,null,null,null,null,null,null,null,null,null,null,null,null,null,null,null,null,null,null,null,null,null,null,null,null,null,null,null,null,null,null,null,null,null,null,null,null,null,null,null,null,null,null,null,""]
[null,null,null,null,null,null,null,null,null,null,null,null,null,null,null,null,null,null,null,null,null,null,null,null,null,null,null,null,null,null,null,null,null,null,null,null,null,null,null,null,null,null,null,null,null,null,null,null,null,null,null,null,null,null,null,null,null,null,null,null,null,null,null,null,null,null,null,null,null,null,null,null,null,null,null,null,null,null,null,null,null,null,null,null,null,null,null,null,null,null,null,null,""]
[null,null,null,null,null,null,null,null,null,null,null,null,null,null,null,null,null,null,null,null,null,null,null,null,null,null,null,null,null,null,null,null,null,null,null,null,null,null,null,null,null,null,null,null,null,null,null,null,null,null,null,null,null,null,null,null,null,null,null,null,null,null,null,null,null,null,null,null,null,null,null,null,null,null,null,null,null,null,null,null,null,null,null,null,null,null,null,null,null,null,null,null,""]
[null,null,null,null,null,null,null,null,null,null,null,null,null,null,null,null,null,null,null,null,null,null,null,null,null,null,null,null,null,null,null,null,null,null,null,null,null,null,null,null,null,null,null,null,null,null,null,null,null,null,null,null,null,null,null,null,null,null,null,null,null,null,null,null,null,null,null,null,null,null,null,null,null,null,null,null,null,null,null,null,null,null,null,null,null,null,null,null,null,null,null,null,""]
[null,null,null,null,null,null,null,null,null,null,null,null,null,null,null,null,null,null,null,null,null,null,null,null,null,null,null,null,null,null,null,null,null,null,null,null,null,null,null,null,null,null,null,null,null,null,null,null,null,null,null,null,null,null,null,null,null,null,null,null,null,null,null,null,null,null,null,null,null,null,null,null,null,null,null,null,null,null,null,null,null,null,null,null,null,null,null,null,null,null,null,null,""]
[null,null,null,null,null,null,null,null,null,null,null,null,null,null,null,null,null,null,null,null,null,null,null,null,null,null,null,null,null,null,null,null,null,null,null,null,null,null,null,null,null,null,null,null,null,null,null,null,null,null,null,null,null,null,null,null,null,null,null,null,null,null,null,null,null,null,null,null,null,null,null,null,null,null,null,null,null,null,null,null,null,null,null,null,null,null,null,null,null,null,null,null,""]
[null,null,null,null,null,null,null,null,null,null,null,null,null,null,null,null,null,null,null,null,null,null,null,null,null,null,null,null,null,null,null,null,null,null,null,null,null,null,null,null,null,null,null,null,null,null,null,null,null,null,null,null,null,null,null,null,null,null,null,null,null,null,null,null,null,null,null,null,null,null,null,null,null,null,null,null,null,null,null,null,null,null,null,null,null,null,null,null,null,null,null,null,""]
[null,null,null,null,null,null,null,null,null,null,null,null,null,null,null,null,null,null,null,null,null,null,null,null,null,null,null,null,null,null,null,null,null,null,null,null,null,null,null,null,null,null,null,null,null,null,null,null,null,null,null,null,null,null,null,null,null,null,null,null,null,null,null,null,null,null,null,null,null,null,null,null,null,null,null,null,null,null,null,null,null,null,null,null,null,null,null,null,null,null,null,null,""]
[null,null,null,null,null,null,null,null,null,null,null,null,null,null,null,null,null,null,null,null,null,null,null,null,null,null,null,null,null,null,null,null,null,null,null,null,null,null,null,null,null,null,null,null,null,null,null,null,null,null,null,null,null,null,null,null,null,null,null,null,null,null,null,null,null,null,null,null,null,null,null,null,null,null,null,null,null,null,null,null,null,null,null,null,null,null,null,null,null,null,null,null,""]
[null,null,null,null,null,null,null,null,null,null,null,null,null,null,null,null,null,null,null,null,null,null,null,null,null,null,null,null,null,null,null,null,null,null,null,null,null,null,null,null,null,null,null,null,null,null,null,null,null,null,null,null,null,null,null,null,null,null,null,null,null,null,null,null,null,null,null,null,null,null,null,null,null,null,null,null,null,null,null,null,null,null,null,null,null,null,null,null,null,null,null,null,""]
[null,null,null,null,null,null,null,null,null,null,null,null,null,null,null,null,null,null,null,null,null,null,null,null,null,null,null,null,null,null,null,null,null,null,null,null,null,null,null,null,null,null,null,null,null,null,null,null,null,null,null,null,null,null,null,null,null,null,null,null,null,null,null,null,null,null,null,null,null,null,null,null,null,null,null,null,null,null,null,null,null,null,null,null,null,null,null,null,null,null,null,null,""]
[null,null,null,null,null,null,null,null,null,null,null,null,null,null,null,null,null,null,null,null,null,null,null,null,null,null,null,null,null,null,null,null,null,null,null,null,null,null,null,null,null,null,null,null,null,null,null,null,null,null,null,null,null,null,null,null,null,null,null,null,null,null,null,null,null,null,null,null,null,null,null,null,null,null,null,null,null,null,null,null,null,null,null,null,null,null,null,null,null,null,null,null,""]
[null,null,null,null,null,null,null,null,null,null,null,null,null,null,null,null,null,null,null,null,null,null,null,null,null,null,null,null,null,null,null,null,null,null,null,null,null,null,null,null,null,null,null,null,null,null,null,null,null,null,null,null,null,null,null,null,null,null,null,null,null,null,null,null,null,null,null,null,null,null,null,null,null,null,null,null,null,null,null,null,null,null,null,null,null,null,null,null,null,null,null,null,""]
[null,null,null,null,null,null,null,null,null,null,null,null,null,null,null,null,null,null,null,null,null,null,null,null,null,null,null,null,null,null,null,null,null,null,null,null,null,null,null,null,null,null,null,null,null,null,null,null,null,null,null,null,null,null,null,null,null,null,null,null,null,null,null,null,null,null,null,null,null,null,null,null,null,null,null,null,null,null,null,null,null,null,null,null,null,null,null,null,null,null,null,null,""]
[null,null,null,null,null,null,null,null,null,null,null,null,null,null,null,null,null,null,null,null,null,null,null,null,null,null,null,null,null,null,null,null,null,null,null,null,null,null,null,null,null,null,null,null,null,null,null,null,null,null,null,null,null,null,null,null,null,null,null,null,null,null,null,null,null,null,null,null,null,null,null,null,null,null,null,null,null,null,null,null,null,null,null,null,null,null,null,null,null,null,null,null,""]
[null,null,null,null,null,null,null,null,null,null,null,null,null,null,null,null,null,null,null,null,null,null,null,null,null,null,null,null,null,null,null,null,null,null,null,null,null,null,null,null,null,null,null,null,null,null,null,null,null,null,null,null,null,null,null,null,null,null,null,null,null,null,null,null,null,null,null,null,null,null,null,null,null,null,null,null,null,null,null,null,null,null,null,null,null,null,null,null,null,null,null,null,""]
[null,null,null,null,null,null,null,null,null,null,null,null,null,null,null,null,null,null,null,null,null,null,null,null,null,null,null,null,null,null,null,null,null,null,null,null,null,null,null,null,null,null,null,null,null,null,null,null,null,null,null,null,null,null,null,null,null,null,null,null,null,null,null,null,null,null,null,null,null,null,null,null,null,null,null,null,null,null,null,null,null,null,null,null,null,null,null,null,null,null,null,null,""]
[null,null,null,null,null,null,null,null,null,null,null,null,null,null,null,null,null,null,null,null,null,null,null,null,null,null,null,null,null,null,null,null,null,null,null,null,null,null,null,null,null,null,null,null,null,null,null,null,null,null,null,null,null,null,null,null,null,null,null,null,null,null,null,null,null,null,null,null,null,null,null,null,null,null,null,null,null,null,null,null,null,null,null,null,null,null,null,null,null,null,null,null,""]
[null,null,null,null,null,null,"頁計",null,null,null,null,null,null,null,null,null,null,null,null,null,null,null,null,null,null,null,null,null,null,null,null,null,null,null,null,null,null,null,null,null,null,null,null,null,null,null,null,null,null,null,null,null,null,null,null,null,null,null,null,null,null,null,null,null,null,null,null,null,null,null,null,null,null,null,null,null,null,null,null,null,null,null,null,null,null,null,null,null,null,null,null,null,500000]
[null,null,null,null,null,null,null,null,null,null,null,null,null,null,null,null,null,null,null,null,null,null,null,null,null,null,null,null,null,null,null,null,null,null,null,null,null,null,null,null,null,null,null,null,null,null,null,null,null,null,null,null,null,null,null,null,null,null,null,null,null,null,null,null,null,null,null,null,null,null,null,null,null,null,null,null,null,null,null,null,null,null,null,null,null,null,null,null,null,null,null,null,""]
[]
[]
[null,null,null,null,null,null,null,null,null,null,null,null,null,null,null,null,null,null,null,null,null,null,null,null,null,null,null,null,null,null,null,null,null,null,null,null,null,null,null,null,null,null,null,null,null,null,null,null,null,null,null,null,null,null,2,null,null,null,"/",null,null,null,2,null,null,null,null,null,null,null,null,null,null,null,null,null,null,null,null,null,null,null,null,null,null,null,null,null,null,null,null,null,{"$f":"$CO$123","v":"埼玉建興(株)Ver.1.2"}]